Cogmind - Beta 17 --- EXPLORER MODE // 2026.07.08 @ 23:15:20 // Winter2019/RPGLIKE Player: Grimbling Result: Escaped! Performance ------------- Evolutions (9) 4500 Regions Visited (28) 5600 Robots Destroyed (500) 2500 Value Destroyed (36502) 36502 Prototype IDs (45) 900 Alien Tech Used (0) 0 Bonus (22772) 22772 TOTAL SCORE: 72774 Bonus ------- High Alert Combat Kills 1838 Follower Combat Kills 8368 Hunted by Unchained 500 Entered Garrisons 2200 Used RIF Installer 6500 Destroyed MAIN.C Guards 500 Win 3000 Friendly Fire -134 Cogmind --------- Core Integrity 600/600 Matter 1100/1100 Energy 758/770 System Corruption 0% Temperature Cool (8) Movement Walking (116) Location To Epsilon Eridani Parts ------- > --- POWER (3) -------- Light Quantum Reactor Light Quantum Reactor Light Quantum Reactor > --- PROPULSION (4) --- Centrium Leg High-density Centrium Leg High-density Centrium Leg High-density Centrium Leg > --- UTILITY (15) ----- Advanced Signal Interpreter Experimental Target Analyzer Experimental Core Analyzer Experimental Core Analyzer Experimental Core Analyzer Advanced Weapon Cycler Advanced Reaction Control System Advanced Phase Shifter Centrium Medium Armor Plating Graphene Brace Advanced Remote Force Field Relay Coupler [Grunt] (27) Relay Coupler [Demolisher] (84) Relay Coupler [Hunter] (78) Advanced Corruption Screen > --- WEAPON (4) ------- Multirail Multirail Multirail Advanced Remote Datajack > --- INVENTORY (10) --- Centrium Leg Centrium Leg Advanced Terrain Scanner Advanced Kinecellerator Advanced Point Defense System Relay Coupler [Grunt] (108) Relay Coupler [Sentry] (96) Peak State ------------ > --- POWER ------------ Light Quantum Reactor Light Quantum Reactor Light Quantum Reactor > --- PROPULSION ------- Centrium Leg High-density Centrium Leg High-density Centrium Leg High-density Centrium Leg > --- UTILITY ---------- Advanced Signal Interpreter Experimental Target Analyzer Experimental Core Analyzer Experimental Core Analyzer Experimental Core Analyzer Advanced Weapon Cycler Advanced Reaction Control System Advanced Phase Shifter Centrium Medium Armor Plating Graphene Brace Advanced Remote Force Field Relay Coupler [Grunt] Relay Coupler [Demolisher] Relay Coupler [Hunter] Advanced Corruption Screen > --- WEAPON ----------- Multirail Multirail Multirail Advanced Remote Datajack > --- INVENTORY -------- Protomatter Protomatter Centrium Leg Centrium Leg Advanced Terrain Scanner Advanced Kinecellerator Advanced Point Defense System Relay Coupler [Grunt] Relay Coupler [Sentry] Helical Railgun [Rating: 231] Favorites ----------- Power Light Quantum Reactor Engine Improved Deuterium Engine Power Core Light Fission Core Reactor Light Quantum Reactor Propulsion Centrium Leg Leg Centrium Leg Utility Advanced Terrain Scanner Device Advanced Terrain Scanner Processor Advanced Signal Interpreter Hackware Relay Coupler [Grunt] Protection Makeshift Thermal Plating Weapon Lightning Gun Energy Gun Lightning Gun Ballistic Gun Multirail Ballistic Cannon Heavy Mass Driver Launcher Scatter Rocket Array Special Weapon Improved Remote Datajack Special Melee Weapon Datajack Build | -11 -10 -10 -8 -8 -8 -8 -7 -7 -6 -6 -5 -5 -5 -5 -5 -5 -4 -4 -3 -3 -2 -2 -2 -2 -1 -1 -1 -1 ------- Run | Yrd Mat Sub Mat Gar Mat Gar Fac Gar Fac Gar Fac Was Fac Gar Fac Gar Fac Gar Res Gar Res Gar Res Gar Acc Gar Acc Com Slots Evolved 22 | 3 4 . 1 3 2 1 1 1 3 . . . . 2 . . . . . . 1 . . . . . . . Power 2 | . 1 . . . . . . 1 . . . . . . . . . . . . . . . . . . . . Propulsion 3 | 1 1 . . . . . 1 . . . . . . . . . . . . . . . . . . . . . Utility 14 | 1 1 . . 3 2 1 . . 3 . . . . 2 . . . . . . 1 . . . . . . . Weapon 3 | 1 1 . 1 . . . . . . . . . . . . . . . . . . . . . . . . . Parts Attached 145 | 8 3 1 12 7 8 5 3 2 9 3 3 1 7 10 3 7 2 3 1 4 2 9 1 4 . 4 6 17 Power 14 | 1 . . 2 2 1 . . 2 1 . . . 1 3 . 1 . . . . . . . . . . . . Engine 5 | 1 . . 1 . 1 . . 1 . . . . 1 . . . . . . . . . . . . . . . Core 5 | . . . 1 2 . . . 1 1 . . . . . . . . . . . . . . . . . . . Reactor 4 | . . . . . . . . . . . . . . 3 . 1 . . . . . . . . . . . . Propulsion 18 | 2 . . 3 . . 1 1 . . . . . 3 3 . 2 . . . . . . . . . . . 3 Treads . | . . . . . . . . . . . . . . . . . . . . . . . . . . . . . Leg 18 | 2 . . 3 . . 1 1 . . . . . 3 3 . 2 . . . . . . . . . . . 3 Wheel . | . . . . . . . . . . . . . . . . . . . . . . . . . . . . . Hover . | . . . . . . . . . . . . . . . . . . . . . . . . . . . . . Flight . | . . . . . . . . . . . . . . . . . . . . . . . . . . . . . Utility 71 | 2 . 1 . 5 4 3 2 . 3 2 2 . 3 3 . 4 1 2 1 4 2 5 1 4 . 4 1 12 Device 28 | 1 . . . 3 1 2 . . 2 2 2 . 3 1 . 1 1 1 1 1 . . . . . . 1 5 Storage . | . . . . . . . . . . . . . . . . . . . . . . . . . . . . . Processor 15 | 1 . . . 2 2 . 1 . 1 . . . . . . 1 . . . . 2 . 1 . . . . 4 Hackware 25 | . . . . . 1 1 1 . . . . . . 2 . 2 . 1 . 3 . 5 . 3 . 4 . 2 Protection 3 | . . 1 . . . . . . . . . . . . . . . . . . . . . 1 . . . 1 Artifact . | . . . . . . . . . . . . . . . . . . . . . . . . . . . . . Weapon 42 | 3 3 . 7 . 3 1 . . 5 1 1 1 . 1 3 . 1 1 . . . 4 . . . . 5 2 Energy Gun 27 | 2 3 . 7 . 2 . . . 5 . 1 . . . 2 . 1 1 . . . 3 . . . . . . Energy Cannon . | . . . . . . . . . . . . . . . . . . . . . . . . . . . . . Ballistic Gun 8 | 1 . . . . . . . . . . . . . . . . . . . . . . . . . . 5 2 Ballistic Cannon 1 | . . . . . . . . . . 1 . . . . . . . . . . . . . . . . . . Launcher 1 | . . . . . . . . . . . . 1 . . . . . . . . . . . . . . . . Special Weapon 4 | . . . . . . 1 . . . . . . . 1 1 . . . . . . 1 . . . . . . Impact Weapon . | . . . . . . . . . . . . . . . . . . . . . . . . . . . . . Slashing Weapon . | . . . . . . . . . . . . . . . . . . . . . . . . . . . . . Piercing Weapon . | . . . . . . . . . . . . . . . . . . . . . . . . . . . . . Special Melee Weapon 1 | . . . . . 1 . . . . . . . . . . . . . . . . . . . . . . . Unidentified Prototypes 16 | . . . 1 . 3 . . . 1 1 2 1 . . 1 . . 1 . . . . . . . . . 5 Parts Lost 1 | . . . . . . . . . . . . 1 . . . . . . . . . . . . . . . . Power . | . . . . . . . . . . . . . . . . . . . . . . . . . . . . . Propulsion 1 | . . . . . . . . . . . . 1 . . . . . . . . . . . . . . . . Utility . | . . . . . . . . . . . . . . . . . . . . . . . . . . . . . Weapon . | . . . . . . . . . . . . . . . . . . . . . . . . . . . . . Highest Loss Streak 1 | . . . . . . . . . . . . 1 . . . . . . . . . . . . . . . . To Critical Strikes . | . . . . . . . . . . . . . . . . . . . . . . . . . . . . . Average Backups 4 | . 1 . 2 3 4 4 4 5 5 4 4 5 4 6 6 5 5 3 3 3 4 5 4 5 5 5 6 4 Power . | . . . . . . . . . . . . . . . . . . . . . . . . . . . . . Propulsion . | . . . . . . . . . . . . . . . 1 . . . . . . . . . . . . . Utility 4 | . . . . 3 4 4 4 4 4 3 4 5 4 5 5 5 5 3 3 3 4 4 4 5 5 5 5 3 Weapon . | . 1 . 2 . . . . . . . . . . . . . . . . . . . . . . . 1 . Tool/Special . | . . . . . . . . . . . . . . . . . . . . . . . . . . . . . Unused Backups 12 | . . . . 1 . . . . 1 1 . . . 1 . . 1 3 . . . . . . . 1 . 3 Power . | . . . . . . . . . . . . . . . . . . . . . . . . . . . . . Propulsion . | . . . . . . . . . . . . . . . . . . . . . . . . . . . . . Utility 11 | . . . . 1 . . . . 1 1 . . . 1 . . 1 3 . . . . . . . 1 . 2 Weapon 1 | . . . . . . . . . . . . . . . . . . . . . . . . . . . . 1 Tool/Special . | . . . . . . . . . . . . . . . . . . . . . . . . . . . . . Average Slot Usage (%) 98 | . 87 79 96 98 96 98 98 99 100 99 100 98 92 95 95 97 100 99 100 99 99 100 99 96 100 100 98 99 Core 4 | . . . 5 13 11 11 10 10 12 13 13 12 8 . . . . . . . . . . . . . . . Reactor 7 | . . . . . . . . . . . . . . 11 12 12 12 12 12 12 11 11 10 11 11 11 11 11 Leg 16 | . 23 18 25 21 17 16 18 20 19 17 17 16 14 12 12 14 16 16 16 16 15 15 15 15 15 15 15 15 Device 27 | . 11 9 8 13 19 24 26 25 26 33 34 33 33 36 36 36 36 35 36 36 34 30 27 26 26 26 25 24 Processor 11 | . 11 9 8 13 11 9 8 10 9 8 8 8 8 8 8 8 8 8 8 8 9 15 17 19 19 16 15 16 Hackware 9 | . . . . . 4 5 8 10 9 8 8 8 8 10 12 10 12 12 12 11 11 11 11 7 11 13 15 14 Protection 1 | . . 7 8 6 5 5 1 . . . . . . . . . . . . . . . . . . . . . Energy Gun 13 | . 26 27 28 28 17 16 15 15 14 12 13 10 12 12 11 12 12 12 12 12 11 11 10 11 11 11 2 . Ballistic Gun 1 | . . . . . . . . . . . . . . . . . . . . . . . . . . . 8 10 Special Weapon 3 | . . . . . . 4 5 5 4 4 4 4 4 4 4 4 4 4 4 4 3 3 3 3 3 3 3 3 Peak Build Rating 231 | 9 10 14 39 61 68 78 78 83 101 107 108 107 104 160 163 167 171 182 172 177 188 195 199 202 199 199 209 231 Average Rating 139 | 4 9 13 30 51 64 70 75 81 87 102 105 103 99 153 160 162 169 170 171 175 179 192 197 194 199 196 199 215 On Entrance 120 | . 9 10 14 39 61 67 72 78 83 101 107 105 93 103 160 160 167 171 170 172 177 188 195 193 199 199 196 209 Avg Prop Armor Cover (%) . | . . . . . . . . . . . . . . . . . . . . . . . . . . . . . Naked Turns . | . . . . . . . . . . . . . . . . . . . . . . . . . . . . . Heaviest Build 110 | 8 12 16 31 46 46 51 51 57 61 71 60 58 59 89 89 89 86 86 99 99 99 102 102 107 100 100 103 110 Greatest Support 131 | 25 25 25 52 52 52 53 73 73 73 73 73 73 57 125 125 125 125 125 125 125 125 125 125 125 125 125 125 131 Greatest Overweight (x) 1 | . . . . . . . . . . . . . 1 . . . . . . . . . . . . . . . Average Overweight (x) . | . . . . . . . . . . . . . . . . . . . . . . . . . . . . . Largest Inventory Capacity 10 | 3 5 5 5 10 10 10 10 10 10 10 10 10 10 10 10 10 10 10 10 10 10 10 10 10 10 10 10 10 Average Capacity 9 | 3 4 5 5 7 10 10 10 10 10 10 10 10 10 10 10 10 10 10 10 10 10 10 10 10 10 10 10 10 Most Carried 10 | 1 3 3 5 10 10 8 10 10 10 10 9 10 10 10 10 10 10 10 7 7 8 10 9 10 10 10 10 10 Average Carried 7 | . 1 . 4 4 8 6 7 8 8 7 7 8 7 8 7 8 9 6 6 6 7 9 8 9 9 9 9 8 Final Capacity 10 | 3 5 5 5 10 10 10 10 10 10 10 10 10 10 10 10 10 10 10 10 10 10 10 10 10 10 10 10 10 Final Carried 10 | 1 3 2 5 10 7 8 7 10 7 9 8 9 8 8 8 8 9 6 7 7 7 9 9 10 9 10 10 7 Class Distribution -------------------- 51% | Wizard-Gunner 31% | Wizard-Tank 13% | Wizard-Skirmisher 3% | Wizard-Assassin Dominant Class ---------------- Wizard-Skirmisher | -10/Materials Wizard-Skirmisher | -10/Subcaves Wizard-Skirmisher | -8/Materials Wizard-Gunner | -8/Garrison Wizard-Assassin | -8/Materials Wizard-Gunner | -8/Garrison Wizard-Skirmisher | -7/Factory Wizard-Skirmisher | -7/Garrison Wizard-Skirmisher | -6/Factory Wizard-Gunner | -6/Garrison Wizard-Tank | -5/Factory Wizard-Gunner | -5/Waste Wizard-Gunner | -5/Factory Wizard-Tank | -5/Garrison Wizard-Tank | -5/Factory Wizard-Tank | -5/Garrison Wizard-Tank | -4/Factory Wizard-Tank | -4/Garrison Wizard-Tank | -3/Research Wizard-Tank | -3/Garrison Wizard-Tank | -2/Research Wizard-Gunner | -2/Garrison Wizard-Gunner | -2/Research Wizard-Gunner | -2/Garrison Wizard-Gunner | -1/Access Wizard-Gunner | -1/Garrison Wizard-Gunner | -1/Access Wizard-Gunner | -1/Command Resources | -11 -10 -10 -8 -8 -8 -8 -7 -7 -6 -6 -5 -5 -5 -5 -5 -5 -4 -4 -3 -3 -2 -2 -2 -2 -1 -1 -1 -1 ----------- Run | Yrd Mat Sub Mat Gar Mat Gar Fac Gar Fac Gar Fac Was Fac Gar Fac Gar Fac Gar Res Gar Res Gar Res Gar Acc Gar Acc Com Matter Collected 7137 | 264 74 192 120 125 134 134 40 54 60 217 60 . 55 291 67 112 10 154 17 103 . 193 193 328 30 190 2228 1692 Remotely . | . . . . . . . . . . . . . . . . . . . . . . . . . . . . . Salvage Created 28200 | 31 59 166 435 1665 995 948 164 1639 686 1482 248 . 395 1014 921 304 157 905 830 1269 100 1194 1341 2470 1208 3038 2313 2223 Parts 1460 | 5 5 14 39 91 46 74 12 54 32 65 2 . 20 61 28 12 10 23 31 72 12 95 62 156 42 114 140 143 Haulers Intercepted 10 | . . . 1 . 4 . . . 1 . . . . . 1 . . . . . . . . . 1 . 2 . Recyclers Shooed 1 | . . . . . . . . . . . . . . . . . . . . . . . . . . . . 1 Parts Field Recycled . | . . . . . . . . . . . . . . . . . . . . . . . . . . . . . Retrieved Matter . | . . . . . . . . . . . . . . . . . . . . . . . . . . . . . Parts Self-Destructed . | . . . . . . . . . . . . . . . . . . . . . . . . . . . . . Prevented . | . . . . . . . . . . . . . . . . . . . . . . . . . . . . . Parts Restored . | . . . . . . . . . . . . . . . . . . . . . . . . . . . . . Kills | -11 -10 -10 -8 -8 -8 -8 -7 -7 -6 -6 -5 -5 -5 -5 -5 -5 -4 -4 -3 -3 -2 -2 -2 -2 -1 -1 -1 -1 ------- Run | Yrd Mat Sub Mat Gar Mat Gar Fac Gar Fac Gar Fac Was Fac Gar Fac Gar Fac Gar Res Gar Res Gar Res Gar Acc Gar Acc Com Combat Hostiles Destroyed 408 | . 2 4 9 32 13 27 5 25 8 26 1 . 8 23 10 7 4 11 7 19 3 19 7 38 16 35 20 29 Guns 289 | . 2 3 8 28 10 15 4 19 7 18 . . 4 16 7 7 3 8 2 9 2 13 6 20 12 17 20 29 AOE 25 | . . . 1 . 2 6 . 3 . 2 . . 1 2 . . 1 . 1 3 . 2 . . 1 . . . Classes Destroyed 27 | 1 2 2 5 6 2 . . 1 . 2 . . . . . . . . . . . . 1 . 1 . . 4 Worker 10 | . . . . . 2 . . . 2 . . . . . . . . . 1 . . . 4 . . . 1 . Builder 3 | . . . . . . . . . . . . . . . . . . . . . . . 2 . . . 1 . Tunneler 3 | 2 . . . . . . . . . . . . . . . . . . 1 . . . . . . . . . Hauler 10 | . . . 1 . 4 . . . 1 . . . . . 1 . . . . . . . . . 1 . 2 . Recycler 3 | . . . . . 1 . . . 1 . . . . . 1 . . . . . . . . . . . . . Carrier 2 | . . . . . . . . . . . . . . . . . . . . . . . . . 1 . 1 . Operator 15 | . . . 2 . 1 . . . 1 . . . 1 . 1 . 1 1 1 . . . 4 . . . 1 1 Watcher 42 | . 1 . . 2 2 . 1 . . . 4 . 4 . 4 1 2 1 3 . 1 . 5 . 2 1 4 4 Swarmer 111 | . 2 . 2 6 4 3 2 14 2 6 . . 3 12 3 4 4 2 . 2 2 8 . 12 8 5 2 3 Cutter 10 | . . . . . . . . . . 3 . . . . . 1 . . . 4 . . . 2 . . . . Saboteur 3 | . . . . . . . . . . 1 . . . . . . . . . . . . . 2 . . . . Grunt 96 | . . . 2 5 5 10 2 7 3 10 . . 3 4 6 1 . 4 3 7 . 2 2 3 6 11 . . Brawler 12 | . . . . 4 . . . . 1 . . . . . . . . . 2 . . . . 1 . 4 . . Duelist 8 | . . . . 3 . . . . . . . . . 1 . 1 . . . . . . . . . 3 . . Protector 3 | . . . . 1 . . . . . . . . . 1 . . . . . . . . . 1 . . . . Sentry 62 | . . . 4 7 3 9 . 2 1 1 1 . 2 1 1 . . 3 1 4 1 1 . 5 2 8 3 2 Demolisher 2 | . . . . 1 . . . . . . . . . . . . . . . . . . . 1 . . . . Specialist 5 | . . . . . . . . 2 . . . . . . . . . . . . . 2 . 1 . . . . Hunter 24 | . . . 1 1 1 2 . . . . . . . . . . . 2 1 1 . 1 1 4 . 5 4 . Programmer 44 | . . . . 3 . 3 1 . 1 3 . . . 3 . . . . . 1 . 6 3 3 . 1 11 5 Behemoth 9 | . . . . 1 . . . . . 1 . . . 1 . . . . . . . . . 3 . . 1 2 Combat Programmer 2 | . . . . . . . . . . . . . . . . . . . . . . . . . . . . 2 Striker 1 | . . . . . . . . . . . . . . . . . . . . . . . . . . . . 1 Executioner 4 | . . . . . . . . . . . . . . . . . . . . . . . . . . . . 4 Alpha 7 2 | . . . . . . . . . . . . . . . . . . . . . . . . . . . . 2 Artisan 1 | . . 1 . . . . . . . . . . . . . . . . . . . . . . . . . . Subdweller 4 | . . 4 . . . . . . . . . . . . . . . . . . . . . . . . . . Thug 2 | . . . . . . . . . . . . . . . . . . . . . . . . . . . . 2 Savage 1 | . . . . . . . . . . . . . . . . . . . . . . . 1 . . . . . Butcher 1 | . . . . . . . . . . 1 . . . . . . . . . . . . . . . . . . Guerrilla 1 | . . . . . . . . . . . . . . . . . . . . . . . . . . . . 1 Mutant 5 | . . . . . . . . . . . . . . . . . . . . . . . . . . . . 5 Best Kill Streak 14 | 2 2 3 2 7 6 14 3 9 4 5 2 . 4 5 4 6 3 4 5 7 2 4 3 9 9 10 5 4 Combat Bots Only 14 | . 2 3 2 7 3 14 3 9 4 5 1 . 3 5 3 6 3 4 2 7 2 4 2 9 9 10 5 4 Max Kills in Single Turn 4 | 1 1 1 1 2 3 3 2 2 1 2 1 . 2 3 2 1 2 1 4 2 1 2 2 2 2 1 2 2 Gunslinging 2 | . . . . 1 1 . . 1 . 1 . . . 2 1 . 1 . . . . 1 . 1 1 . 1 1 Exploded 3 | . . . 1 . 1 3 . 2 . 1 . . 1 2 . . 1 . 1 2 . 2 . . 1 . . . Melee . | . . . . . . . . . . . . . . . . . . . . . . . . . . . . . Uniques/NPCs Destroyed . | . . . . . . . . . . . . . . . . . . . . . . . . . . . . . Combat | -11 -10 -10 -8 -8 -8 -8 -7 -7 -6 -6 -5 -5 -5 -5 -5 -5 -4 -4 -3 -3 -2 -2 -2 -2 -1 -1 -1 -1 -------- Run | Yrd Mat Sub Mat Gar Mat Gar Fac Gar Fac Gar Fac Was Fac Gar Fac Gar Fac Gar Res Gar Res Gar Res Gar Acc Gar Acc Com Hostile Shots Fired 2110 | . 6 14 31 111 55 147 220 113 53 103 4 1 13 88 24 32 14 28 15 69 6 72 39 138 51 163 237 263 Missed 1142 | . 2 8 11 39 26 60 112 51 24 55 1 . 7 49 16 20 8 17 11 40 3 40 31 89 36 101 128 157 Intercepted 5 | . . . . . . . . . . . . . . . . . . . . . . . . . . . . 5 Hits 968 | . 4 6 20 72 29 87 108 62 29 48 3 1 6 39 8 12 6 11 4 29 3 32 8 49 15 62 109 106 Melee 24 | . . . . 1 . . 14 1 . 2 . 1 . . . . . . . 3 . . . . . 2 . . Projectile 944 | . 4 6 20 71 29 87 94 61 29 46 3 . 6 39 8 12 6 11 4 26 3 32 8 49 15 60 109 106 AOE 28 | . . . . 3 . . . 1 . 3 . . . 6 2 2 . . . . . . . 9 . . . 2 Critical Strikes 52 | . . . . 4 . 7 1 4 1 1 . 1 2 . . 1 . . 1 6 . 3 3 3 . 1 6 7 Actively Blocked 35 | . . . . . . . . . . 1 . 1 2 . . 1 . . 1 6 . 3 3 3 . 1 6 7 Part Disruptions 10 | . . . . . . 2 4 . . . . . . . . . . . . 1 . . . . . . 3 . Actively Blocked 7 | . . . . . . 2 4 . . . . . . . . . . . . 1 . . . . . . . . Damage Taken 5986 | . 17 81 165 485 125 411 457 222 80 228 36 16 35 366 170 86 46 91 63 226 41 279 62 493 113 346 631 615 Core 4470 | . 12 55 122 366 87 305 320 157 51 168 27 12 25 279 129 66 33 67 45 170 31 213 46 382 90 267 482 463 Absorbed by Shields 4736 | . . . . 273 142 351 469 244 95 254 . . 32 150 66 37 18 39 47 207 37 236 61 467 106 297 540 568 Redirected to Core 3963 | . 12 41 113 303 80 268 280 139 49 139 27 12 25 252 129 60 33 61 45 163 31 186 46 346 63 222 435 403 Ignored by Resistances 10120 | . 13 73 143 562 224 623 792 492 227 523 38 17 70 550 252 128 66 140 139 458 80 398 81 893 207 633 1143 1155 Core Remaining (%) 98 | 100 . 98 . . . 95 . 97 . 100 . . . . . 100 . 96 . 97 . . . 100 . . . 100 Volleys Fired 1298 | 5 4 16 18 86 25 92 14 70 24 70 6 . 21 78 27 29 8 67 16 55 6 68 50 121 28 98 103 93 Largest 4 | 2 2 3 4 4 3 3 3 3 3 3 3 . 3 3 3 3 3 3 3 3 3 3 3 3 3 3 3 3 Hottest 225 | 80 80 120 220 220 165 165 165 165 170 180 180 . 180 180 185 185 185 195 195 195 195 225 225 225 225 225 225 135 Shots Fired 3653 | 10 8 48 57 345 75 269 42 200 72 198 18 . 49 216 69 75 24 165 46 153 18 174 129 316 78 264 298 237 Gun 3512 | 10 8 48 57 345 75 266 42 196 72 192 18 . 42 207 66 69 24 153 45 147 18 161 118 293 75 249 297 219 Cannon 6 | . . . . . . . . . . 6 . . . . . . . . . . . . . . . . . . Launcher . | . . . . . . . . . . . . . . . . . . . . . . . . . . . . . Special 135 | . . . . . . 3 . 4 . . . . 7 9 3 6 . 12 1 6 . 13 11 23 3 15 1 18 Kinetic 486 | . . . . . . . . . . 6 . . . . . . . . . . . . . . . . 261 219 Thermal 37 | 10 8 . 17 . . . . . . . . . . . 2 . . . . . . . . . . . . . Explosive . | . . . . . . . . . . . . . . . . . . . . . . . . . . . . . Electromagnetic 2997 | . . 48 40 345 75 266 42 196 72 192 18 . 42 207 66 69 24 153 45 147 18 161 118 293 75 249 36 . Robot Hit Streak 100 | 9 16 51 20 100 25 51 23 57 58 61 10 . 32 31 52 21 26 20 48 98 23 64 32 57 48 72 53 78 Robot Miss Streak 3 | . . 1 1 2 2 1 1 2 2 1 1 . 1 2 2 1 1 2 . 1 . 3 2 2 1 1 2 3 Penetration Max 1 | . . . . . . . . . . . . . . . . . . . . . . . . . . . 1 1 Secondary Targets 72 | . 1 . . 4 3 3 1 5 2 6 . . 1 4 1 2 3 2 3 5 . 3 . 6 3 2 5 7 Max Gunslinging Chain 2 | . 1 . . 1 1 1 1 1 1 1 . . 1 2 1 1 1 1 1 1 . 1 . 2 1 1 1 1 Shots Hit Robots 2482 | 9 7 42 41 176 71 190 38 114 61 122 12 . 34 103 55 34 17 69 45 63 15 129 98 234 67 196 248 192 Core Hits 1107 | 3 3 14 21 84 29 54 14 44 28 53 5 . 16 37 24 12 7 26 20 37 10 55 43 89 38 70 108 163 Critical Kills 33 | . . . . . . . . . . . . . . . . . . . . . . . . . . . 18 15 Critical Parts Destroyed 54 | . . . . . . . . . . . . . . . . . . . . . . . . . . . 28 26 Critical Strikes 301 | . . . 2 9 7 20 2 11 4 14 1 . 4 8 . 3 1 6 3 7 2 5 10 22 12 15 80 53 Burn 1 | . . . 1 . . . . . . . . . . . . . . . . . . . . . . . . . Destroy 131 | . . . . . . . . . . . . . . . . . . . . . . . . . . . 78 53 Corrupt 169 | . . . 1 9 7 20 2 11 4 14 1 . 4 8 . 3 1 6 3 7 2 5 10 22 12 15 2 . Melee Attacks 11 | . . . . . 10 1 . . . . . . . . . . . . . . . . . . . . . . Impact . | . . . . . . . . . . . . . . . . . . . . . . . . . . . . . Slashing . | . . . . . . . . . . . . . . . . . . . . . . . . . . . . . Piercing . | . . . . . . . . . . . . . . . . . . . . . . . . . . . . . Sneak Attacks 7 | . . . . . 7 . . . . . . . . . . . . . . . . . . . . . . . Combat Hostiles . | . . . . . . . . . . . . . . . . . . . . . . . . . . . . . Follow-up Attacks . | . . . . . . . . . . . . . . . . . . . . . . . . . . . . . Damage Inflicted 53299 | 98 77 589 794 2735 1512 2818 425 3259 1070 2697 416 . 881 1978 1529 864 549 1676 1534 1881 370 1707 2112 4531 2227 5041 3699 6230 Guns 49956 | 98 77 470 711 2670 1318 2525 425 2858 1070 2566 416 . 774 1797 1313 730 510 1536 1202 1547 370 1504 2071 4531 2043 5041 3699 6084 Cannons . | . . . . . . . . . . . . . . . . . . . . . . . . . . . . . Explosions 3253 | . . 119 83 65 192 293 . 401 . 131 . . 99 181 180 134 39 140 332 334 . 203 41 . 184 . . 102 Melee . | . . . . . . . . . . . . . . . . . . . . . . . . . . . . . Ramming 90 | . . . . . 2 . . . . . . . 8 . 36 . . . . . . . . . . . . 44 Kinetic 8929 | . . . . . . . . . . . . . . . . . . . . . . . . . . . 2845 6084 Thermal 3573 | 98 77 119 376 65 192 293 . 401 . 131 . . 99 181 180 134 39 94 332 334 . 203 41 . 184 . . . Explosive 148 | . . . . . . . . . . . . . . . . . . 46 . . . . . . . . . 102 Electromagnetic 40559 | . . 470 418 2670 1318 2525 425 2858 1070 2566 416 . 774 1797 1313 730 510 1536 1202 1547 370 1504 2071 4531 2043 5041 854 . Impact . | . . . . . . . . . . . . . . . . . . . . . . . . . . . . . Slashing . | . . . . . . . . . . . . . . . . . . . . . . . . . . . . . Piercing . | . . . . . . . . . . . . . . . . . . . . . . . . . . . . . Highest Corruption 7 | . . . 1 1 1 7 1 1 2 2 . 6 6 2 . . . . . 1 . 1 1 1 . . . . Average Corruption 1 | . . . 1 1 1 4 1 1 1 2 . 5 5 1 . . . . . 1 . 1 1 1 . . . . Corruption Purged 6 | . . . . . . . . . . . . . 4 2 . . . . . . . . . . . . . . Corruption Blocked 4 | . . . . . . . . . . . . . . . . . . . . . . . . 1 . . 3 . Effects 150 | . . . 1 23 3 43 2 9 1 13 . 3 15 1 . . . . . 8 . 6 10 12 . . . . Message Errors 35 | . . . 1 8 . 9 . 3 . 4 . . 3 . . . . . . . . 2 1 4 . . . . Matter Fused 31 | . . . . 4 1 6 . 2 . 3 . 1 3 . . . . . . 3 . 1 3 4 . . . . Heat Flow Errors 24 | . . . . 3 . 8 1 . . . . 1 3 . . . . . . 3 . 2 2 1 . . . . Energy Discharges 20 | . . . . 2 1 8 1 1 . 1 . 1 1 . . . . . . . . 1 3 . . . . . Parts Rejected 3 | . . . . 1 . 2 . . . . . . . . . . . . . . . . . . . . . . Parts Fused 1 | . . . . . . . . . . 1 . . . . . . . . . . . . . . . . . . Data Loss (minor) 24 | . . . . 4 . 5 . 3 1 3 . . 4 1 . . . . . 2 . . . 1 . . . . Data Loss (major) 5 | . . . . . 1 1 . . . 1 . . 1 . . . . . . . . . . 1 . . . . Misfires 3 | . . . . 1 . 1 . . . . . . . . . . . . . . . . 1 . . . . . Alerts 2 | . . . . . . 2 . . . . . . . . . . . . . . . . . . . . . . Weapon Failures 2 | . . . . . . 1 . . . . . . . . . . . . . . . . . 1 . . . . Overload Shots . | . . . . . . . . . . . . . . . . . . . . . . . . . . . . . Overflow Damage 167 | . . . . . 7 . . 23 . . . . 49 . . . . . . 50 . . . . 34 . . 4 Projectiles . | . . . . . . . . . . . . . . . . . . . . . . . . . . . . . Explosions 163 | . . . . . 7 . . 23 . . . . 49 . . . . . . 50 . . . . 34 . . . Melee 4 | . . . . . . . . . . . . . . . . . . . . . . . . . . . . 4 Knockbacks . | . . . . . . . . . . . . . . . . . . . . . . . . . . . . . Impact . | . . . . . . . . . . . . . . . . . . . . . . . . . . . . . Kinetic . | . . . . . . . . . . . . . . . . . . . . . . . . . . . . . Secondary . | . . . . . . . . . . . . . . . . . . . . . . . . . . . . . Self-Inflicted Damage 220 | . . . 32 . . . . 23 . 25 . . . . . . . . . 67 . 42 . 31 . . . . Shots 9 | . . . 3 . . . . 1 . 1 . . . . . . . . . 2 . 1 . 1 . . . . Rammed . | . . . . . . . . . . . . . . . . . . . . . . . . . . . . . Targets Rammed 5 | . . . . . 1 . . . . . . . 1 . 2 . . . . . . . . . . . . 1 Kicked 5 | . . . . . 1 . . . . . . . 1 . 2 . . . . . . . . . . . . 1 Crushed . | . . . . . . . . . . . . . . . . . . . . . . . . . . . . . Highest Temperature 298 | . . 8 298 157 . 198 108 . . 80 34 84 213 88 115 115 48 116 164 220 116 276 123 141 . 3 4 . Average Temperature 53 | . . 4 96 84 . 82 70 . . 29 23 46 30 30 47 46 36 48 61 59 52 111 77 45 . 3 4 . Received Heat Transfer 1081 | . . 48 81 105 43 122 129 76 31 81 18 . 4 90 12 18 . 12 12 36 8 9 . 60 17 33 8 28 Effects 8 | . . . 5 . . . . . . . . . . . . . . . . . . 3 . . . . . . Interference 8 | . . . 5 . . . . . . . . . . . . . . . . . . 3 . . . . . . Siege Activations . | . . . . . . . . . . . . . . . . . . . . . . . . . . . . . Martial Activations . | . . . . . . . . . . . . . . . . . . . . . . . . . . . . . Shielding Activations . | . . . . . . . . . . . . . . . . . . . . . . . . . . . . . Robots Disrupted 14 | . . . 1 4 1 1 . . 1 1 . . . . . . . 1 . . . 2 1 . . 1 . . Combat Hostiles 14 | . . . 1 4 1 1 . . 1 1 . . . . . . . 1 . . . 2 1 . . 1 . . Robots Corrupted 115 | . . 1 . 4 2 6 1 9 1 8 2 . 3 5 4 . . 4 6 7 1 5 3 18 5 19 1 . Combat Hostiles 94 | . . 1 . 4 1 6 1 3 1 6 1 . 3 5 3 . . 3 4 7 1 4 1 18 3 18 . . Parts Fried 423 | . . 7 6 12 12 25 10 28 8 17 5 . 8 14 16 3 5 12 12 15 3 19 32 68 31 48 7 . Impact Corruptions 1 | . . . . . . . . . . . . . . . . . . . . . . . . . . . . 1 Robots Melted . | . . . . . . . . . . . . . . . . . . . . . . . . . . . . . Combat Hostiles . | . . . . . . . . . . . . . . . . . . . . . . . . . . . . . Parts Melted 2 | . . . . . . . . 1 . . . . . . . . . . . . . . . 1 . . . . Heat Transferred 3379 | 225 175 100 779 100 200 175 . 400 . 50 . . 50 150 150 150 . 50 200 225 . . 50 . 150 . . . Parts Sabotaged . | . . . . . . . . . . . . . . . . . . . . . . . . . . . . . Parts Stolen . | . . . . . . . . . . . . . . . . . . . . . . . . . . . . . Parts Stripped . | . . . . . . . . . . . . . . . . . . . . . . . . . . . . . Power Chain Reactions 30 | . . 1 3 1 2 4 . 6 . 2 . . . 1 1 1 1 1 1 2 . 1 1 . 1 . . . Alert | -11 -10 -10 -8 -8 -8 -8 -7 -7 -6 -6 -5 -5 -5 -5 -5 -5 -4 -4 -3 -3 -2 -2 -2 -2 -1 -1 -1 -1 ------- Run | Yrd Mat Sub Mat Gar Mat Gar Fac Gar Fac Gar Fac Was Fac Gar Fac Gar Fac Gar Res Gar Res Gar Res Gar Acc Gar Acc Com Maximum Alert Level 4 | . . . . 3 . 3 . 3 . 2 1 . . 3 1 3 . 2 1 3 1 2 . 4 3 3 1 1 Low Security (%) 57 | 100 100 . 100 32 100 31 100 60 100 52 95 100 100 26 95 54 100 52 91 31 67 31 100 6 . 34 49 97 Level 1 16 | . . . . 19 . 8 . 9 . 36 4 . . 30 4 18 . 36 8 15 32 32 . 16 22 18 50 2 Level 2 16 | . . . . 47 . 47 . 20 . 10 . . . 10 . 19 . 11 . 25 . 35 . 27 68 32 . . Level 3 6 | . . . . . . 13 . 10 . . . . . 32 . 7 . . . 27 . . . 13 8 15 . . Level 4 2 | . . . . . . . . . . . . . . . . . . . . . . . . 36 . . . . Level 5 . | . . . . . . . . . . . . . . . . . . . . . . . . . . . . . High Security . | . . . . . . . . . . . . . . . . . . . . . . . . . . . . . Max Security . | . . . . . . . . . . . . . . . . . . . . . . . . . . . . . Peak Influence 1376 | 5 35 . 59 739 198 936 110 802 94 689 202 . 173 883 324 828 117 499 280 991 239 655 88 1376 1003 749 352 299 Initial 625 | . . . . . 198 18 110 . 94 . 202 . . 84 324 . 117 . 121 21 184 21 . 12 625 159 340 76 Average 255 | . 6 . 16 349 49 461 28 272 24 239 83 . 13 427 27 258 32 213 89 445 108 311 15 798 565 373 199 25 Influence Increases 21406 | 10 57 . 275 1275 511 1206 166 1215 258 1408 58 . 380 1413 725 1317 220 1233 570 1476 277 1029 632 1524 718 1566 1031 856 Destroy 0b10 Robot/C 10480 | . 40 . 180 700 260 540 100 580 180 760 20 . 200 580 440 640 120 500 360 620 120 380 200 740 340 900 560 420 Destroy 0b10 Robot/NC 535 | 10 5 . 15 25 50 10 5 35 30 10 20 . 25 5 50 5 15 5 40 . 5 . 75 5 15 5 45 25 Destroy Leader 1368 | . 12 . 62 20 72 20 32 50 34 50 18 . 58 60 114 70 24 40 66 20 42 20 50 80 66 60 160 68 Allied During Kill 1237 | . . . . 19 . 6 . 7 . 19 . . 4 39 119 129 27 80 69 93 23 81 61 107 123 177 50 4 Trap Triggered on 0b10 70 | . . . . . 20 . 10 . 10 . . . . . . . . . . . . . 30 . . . . . Successful Hack 3 | . . . 3 . . . . . . . . . . . . . . . . . . . . . . . . . Disable Machine 108 | . . . 4 . 4 . 4 4 4 8 . . 8 8 . 4 4 16 . 4 . . 12 . . 8 12 4 Anti-Garrison Action 4000 | . . . . 300 . 400 . 350 . 400 . . . 450 . 350 . 350 . 250 . 350 . 400 150 200 . 50 Destroy Structure 2950 | . . . 11 166 15 185 . 99 . 146 . . 70 241 2 119 30 227 20 474 87 183 189 177 9 71 159 270 Partial Spotted 15 | . . . . . . . . . . . . . . . . . . . . . . . . 15 . . . . Lose Combat Pursuer 540 | . . . . 45 90 45 15 90 . 15 . . 15 30 . . . 15 15 15 . 15 15 . 15 45 45 15 Miscellaneous 100 | . . . . . . . . . . . . . . . . . . . . . . . . . . 100 . . Influence Decreases 21406 | 10 57 . 275 720 1028 960 450 972 501 889 577 . 222 738 1558 1014 523 944 822 1076 677 1066 610 170 1841 1070 1624 1012 Entered New Map 3583 | . . . . . 357 20 174 . 149 . 317 . . 74 509 . 186 . 168 16 253 16 . 10 751 94 409 80 Time Decay 5307 | 10 57 . 246 . 408 . 224 . 338 . 260 . 172 . 369 . 206 . 282 . 165 . 497 . 390 . 1035 648 Lost Ally 2069 | . . . . 120 . 40 . 20 14 110 . . 20 40 60 30 . 295 100 160 40 140 108 160 100 317 180 15 Purge Threat 10447 | . . . 29 600 263 900 52 952 . 779 . . 30 624 620 984 131 649 272 900 219 910 5 . 600 659 . 269 Squads Dispatched 48 | . . . . . . . 5 . 2 . . . 2 . 6 . 1 . 4 . 1 . 7 . 7 . 6 7 Investigation 3 | . . . . . . . . . . . . . . . . . . . . . . . . . 1 . . 2 Extermination 22 | . . . . . . . . . 2 . . . 2 . 2 . 1 . 1 . 1 . 5 . . . 4 4 Reinforcement 16 | . . . . . . . 1 . . . . . . . 4 . . . 3 . . . 2 . 3 . 2 1 Assault 2 | . . . . . . . . . . . . . . . . . . . . . . . . . 2 . . . Garrison 5 | . . . . . . . 4 . . . . . . . . . . . . . . . . . 1 . . . Intercept . | . . . . . . . . . . . . . . . . . . . . . . . . . . . . . Searches Triggered . | . . . . . . . . . . . . . . . . . . . . . . . . . . . . . Construction Impeded 2 | . . . . . . . . . . . . . . . . . . . 1 . . . . . 1 . . . Haulers Reinforced 8 | . . . . . . . . . . . . . . . 3 . . . 1 . . . . . 2 . 2 . Active Scanning Responses . | . . . . . . . . . . . . . . . . . . . . . . . . . . . . . Cargo Convoy Interrupts . | . . . . . . . . . . . . . . . . . . . . . . . . . . . . . Alert ID Control Effect 93 | . . . . . . . . . . . . . . . . . . 4 1 6 5 14 30 9 13 9 1 1 Stealth | -11 -10 -10 -8 -8 -8 -8 -7 -7 -6 -6 -5 -5 -5 -5 -5 -5 -4 -4 -3 -3 -2 -2 -2 -2 -1 -1 -1 -1 --------- Run | Yrd Mat Sub Mat Gar Mat Gar Fac Gar Fac Gar Fac Was Fac Gar Fac Gar Fac Gar Res Gar Res Gar Res Gar Acc Gar Acc Com Distress Signals 18 | . . . . . 3 . . . . . . . 1 . . . . . 3 . . . 5 . . . 3 3 Communications Jammed 35 | . . . . . . . 4 . 27 . . . . . 3 . . . . . 1 . . . . . . . Distress Signals 33 | . . . . . . . 4 . 26 . . . . . 3 . . . . . . . . . . . . . Times Spotted 736 | . 3 7 17 36 28 32 26 30 14 38 5 6 13 32 28 28 10 36 25 39 7 41 32 50 25 57 30 41 Peak Tracking Total 11 | . 2 2 4 5 6 5 10 8 6 5 1 6 2 5 3 5 3 6 7 5 2 4 5 7 6 11 4 6 Tactical Retreats 30 | . . . . 3 3 2 4 1 . 1 . . 1 1 . . . 1 1 1 . 1 1 . 1 3 3 2 Traps | -11 -10 -10 -8 -8 -8 -8 -7 -7 -6 -6 -5 -5 -5 -5 -5 -5 -4 -4 -3 -3 -2 -2 -2 -2 -1 -1 -1 -1 ------- Run | Yrd Mat Sub Mat Gar Mat Gar Fac Gar Fac Gar Fac Was Fac Gar Fac Gar Fac Gar Res Gar Res Gar Res Gar Acc Gar Acc Com Traps Triggered 48 | . . . 1 3 1 8 1 1 1 3 2 . . 4 1 3 . 5 . . . 1 4 3 2 2 1 1 Indirectly . | . . . . . . . . . . . . . . . . . . . . . . . . . . . . . Trap Hack Attempts . | . . . . . . . . . . . . . . . . . . . . . . . . . . . . . Triggered . | . . . . . . . . . . . . . . . . . . . . . . . . . . . . . Disarmed 23 | . . . 1 . . . . . . . . . . . 3 4 . . 9 . . . 6 . . . . . Reprogrammed 51 | . . . . . 10 . 7 1 12 . . . . . . . 10 . . . . . 10 . . 1 . . Reused 7 | . . . . . 2 . 1 . 1 . . . . . . . . . . . . . 3 . . . . . Traps Extracted . | . . . . . . . . . . . . . . . . . . . . . . . . . . . . . Installed 1 | . . . . . . 1 . . . . . . . . . . . . . . . . . . . . . . Triggered 7 | . . . . . 2 . 1 . 1 . . . . . . . . . . . . . 3 . . . . . Most Traps Carried 1 | . . . . . . 1 . . . . . . . . . . . . . . . . . . . . . . Machines | -11 -10 -10 -8 -8 -8 -8 -7 -7 -6 -6 -5 -5 -5 -5 -5 -5 -4 -4 -3 -3 -2 -2 -2 -2 -1 -1 -1 -1 ---------- Run | Yrd Mat Sub Mat Gar Mat Gar Fac Gar Fac Gar Fac Was Fac Gar Fac Gar Fac Gar Res Gar Res Gar Res Gar Acc Gar Acc Com Machines Disabled 100 | . . . 1 3 1 9 1 6 1 9 . . 2 9 . 7 1 10 . 7 . 9 3 8 1 6 3 3 Max in Single Turn 2 | . . . 1 1 1 2 1 1 1 1 . . 2 2 . 2 . 2 . 2 . 2 1 2 1 1 1 2 Garrison Access 1 | . . . . . . . . . . . . . . . . . . . . . . . . . 1 . . . Garrison Relay 51 | . . . . 2 . 4 . 5 . 5 . . . 5 . 4 . 5 . 4 . 7 . 5 . 5 . . Phase Generator 9 | . . . . . . 1 . . . 1 . . . 1 . 1 . 1 . 1 . 1 . 1 . . . 1 Energy Cycler 1 | . . . . . . . . . . . . . . . . . . . . . . . . . . . 1 . Machines Repaired . | . . . . . . . . . . . . . . . . . . . . . . . . . . . . . Machines Dismantled . | . . . . . . . . . . . . . . . . . . . . . . . . . . . . . Machines Sabotaged . | . . . . . . . . . . . . . . . . . . . . . . . . . . . . . Overloaded Fab Kills . | . . . . . . . . . . . . . . . . . . . . . . . . . . . . . Hacking | -11 -10 -10 -8 -8 -8 -8 -7 -7 -6 -6 -5 -5 -5 -5 -5 -5 -4 -4 -3 -3 -2 -2 -2 -2 -1 -1 -1 -1 --------- Run | Yrd Mat Sub Mat Gar Mat Gar Fac Gar Fac Gar Fac Was Fac Gar Fac Gar Fac Gar Res Gar Res Gar Res Gar Acc Gar Acc Com Machines Accessed 96 | . 1 . 4 3 8 4 2 2 7 2 2 . 6 2 7 3 6 3 4 4 2 4 7 1 5 4 . 3 Terminals 74 | . 1 . 3 3 7 4 1 2 5 2 1 . 2 2 4 3 3 3 2 4 1 4 5 1 4 4 . 3 Fabricators 6 | . . . . . . . . . . . . . 2 . 2 . 1 . 1 . . . . . . . . . Repair Stations . | . . . . . . . . . . . . . . . . . . . . . . . . . . . . . Recycling Units 1 | . . . . . . . . . . . . . 1 . . . . . . . . . . . . . . . Scanalyzers 4 | . . . . . . . . . 1 . 1 . . . . . 1 . . . . . 1 . . . . . Garrison Access 11 | . . . 1 . 1 . 1 . 1 . . . 1 . 1 . 1 . 1 . 1 . 1 . 1 . . . Total Hacks 399 | . 7 . 13 13 23 16 20 23 31 14 3 . 11 13 26 14 16 15 12 22 8 22 27 1 17 19 . 13 Successful 299 | . 2 . 10 9 20 9 19 13 30 10 3 . 10 9 21 11 16 10 11 9 7 10 23 1 13 11 . 12 Failed 100 | . 5 . 3 4 3 7 1 10 1 4 . . 1 4 5 3 . 5 1 13 1 12 4 . 4 8 . 1 Catastrophic 15 | . . . . 1 1 3 . 3 . . . . . . . . . . . 5 . 1 . . . 1 . . Database Lockouts . | . . . . . . . . . . . . . . . . . . . . . . . . . . . . . Manual 263 | . 7 . 8 11 13 13 8 21 14 13 1 . 4 11 18 13 4 13 4 23 2 20 13 . 7 18 . 4 Terminals 357 | . 7 . 12 13 22 16 15 23 24 14 1 . 6 13 21 14 10 15 9 22 7 22 22 1 16 19 . 13 Fabricators 11 | . . . . . . . . . . . . . 3 . 4 . 2 . 2 . . . . . . . . . Repair Stations . | . . . . . . . . . . . . . . . . . . . . . . . . . . . . . Recycling Units 1 | . . . . . . . . . . . . . 1 . . . . . . . . . . . . . . . Scanalyzers 15 | . . . . . . . . . 6 . 2 . . . . . 3 . . . . . 4 . . . . . Garrison Access 15 | . . . 1 . 1 . 5 . 1 . . . 1 . 1 . 1 . 1 . 1 . 1 . 1 . . . Terminal Hacks 240 | . 2 . 8 9 15 9 14 13 18 8 1 . 3 9 15 10 10 9 8 9 6 10 18 1 12 11 . 12 Part Schematic 1 | . . . . . . . . . . . . . . . . . 1 . . . . . . . . . . . Robot Schematic 1 | . . . . . . . . . . . . . 1 . . . . . . . . . . . . . . . Robot Analysis 3 | . . . . . . . . . . . . . . . . . . . . . . . . . . . . 3 Prototype ID Bank 3 | . . . 1 . . . . . . . . . . . . . . . . . . . 1 . . . . 1 Open Door 5 | . . . . 1 . 1 . . . . . . . . . . . 1 . . . 1 . . . 1 . . Open DSF 1 | . . . . . . . . . . . 1 . . . . . . . . . . . . . . . . . Level Access Points 2 | . . . . 1 . . . . . . . . . . . . . . . . . . . . 1 . . . Branch Access Points 8 | . . . 1 1 1 . . . 1 . . . . . 1 . 1 . . . . . 1 . 1 . . . Emergency Access Points 17 | . . . . 1 1 1 . 1 2 1 . . . 1 . . . 2 . 1 . 1 2 1 1 1 . . Machine Index 2 | . . . . . . . . . . . . . . . . . . . . . . . 1 . . . . 1 Terminal Index 4 | . . . . . . . . . 1 . . . . . 1 . 1 . . . . . . . . . . 1 Garrison Index 12 | . 1 . 1 . 1 . . . 2 . . . 1 . 1 . 1 . 1 . 1 . 1 . 1 . . . Unreport Threat 84 | . . . 2 4 2 6 3 7 . 6 . . . 5 5 7 2 5 2 6 2 7 1 . 4 6 . 2 Locate Traps 2 | . . . . . 2 . . . . . . . . . . . . . . . . . . . . . . . Disarm Traps 12 | . . . 1 . . . . . . . . . 1 . 2 2 . . 4 . . . 2 . . . . . Reprogram Traps 26 | . . . . . 3 . 3 2 6 . . . . . . . 3 . . . . . 5 . 1 2 . 1 Dispatch Records 1 | . . . . . . . 1 . . . . . . . . . . . . . . . . . . . . . Investigation Status 1 | . . . . . . . 1 . . . . . . . . . . . . . . . . . . . . . Assault Status 1 | . . . . . . . . . 1 . . . . . . . . . . . . . . . . . . . Recall Extermination 6 | . . . . . . . 1 . 2 . . . . . 1 . . . 1 . 1 . . . . . . . Recall Reinforcements 4 | . . . . . . . 1 . . . . . . . 1 . . . . . . . 2 . . . . . Recall Assault 2 | . . . . . . . 1 . . . . . . . . . . . . . . . . . 1 . . . Hauler Manifests 2 | . . . . . 1 . . . 1 . . . . . . . . . . . . . . . . . . . Registered Components 8 | . 1 . . . 1 . 1 . 1 . . . . . 1 . . . . . 1 . 1 . . . . 1 Registered Prototypes 7 | . . . . . 1 . 1 . 1 . . . . . 1 . 1 . . . 1 . . . 1 . . . Zone Layout 17 | . . . 2 1 2 . 1 1 . 1 . . . 2 1 . . 1 . 1 . 1 1 . 1 . . 1 Garrison Registry 4 | . . . . . . 1 . 1 . . . . . . . 1 . . . . . . . . . 1 . . Patrol Navigation 1 | . . . . . . . . . . . . . . . . . . . . 1 . . . . . . . . Security Stations 2 | . . . . . . . . 1 . . . . . 1 . . . . . . . . . . . . . . Disengage Seal 1 | . . . . . . . . . . . . . . . . . . . . . . . . . . . . 1 Fabricator Hacks 11 | . . . . . . . . . . . . . 3 . 4 . 2 . 2 . . . . . . . . . Load Schematic 6 | . . . . . . . . . . . . . 2 . 2 . 1 . 1 . . . . . . . . . Build 5 | . . . . . . . . . . . . . 1 . 2 . 1 . 1 . . . . . . . . . Repair Station Hacks . | . . . . . . . . . . . . . . . . . . . . . . . . . . . . . Recycling Unit Hacks 1 | . . . . . . . . . . . . . 1 . . . . . . . . . . . . . . . Retrieve Components 1 | . . . . . . . . . . . . . 1 . . . . . . . . . . . . . . . Scanalyzer 14 | . . . . . . . . . 6 . 1 . . . . . 3 . . . . . 4 . . . . . Retrieve Study 14 | . . . . . . . . . 6 . 1 . . . . . 3 . . . . . 4 . . . . . Garrison Access Hacks 13 | . . . 1 . 1 . 3 . 1 . . . 1 . 1 . 1 . 1 . 1 . 1 . 1 . . . Unlock Access 11 | . . . 1 . 1 . 1 . 1 . . . 1 . 1 . 1 . 1 . 1 . 1 . 1 . . . Coupler Status 2 | . . . . . . . 2 . . . . . . . . . . . . . . . . . . . . . Unauthorized Hacks 20 | . . . 1 . 4 . 2 . 5 2 1 . 2 . 1 1 . 1 . . . . . . . . . . Terminals 17 | . . . 1 . 4 . . . 5 2 . . 2 . 1 1 . 1 . . . . . . . . . . Assimilate 2 | . . . . . . . . . 1 . . . . . 1 . . . . . . . . . . . . . Disrupt 4 | . . . . . . . . . . 2 . . . . . 1 . 1 . . . . . . . . . . Skim 11 | . . . 1 . 4 . . . 4 . . . 2 . . . . . . . . . . . . . . . Fabricators . | . . . . . . . . . . . . . . . . . . . . . . . . . . . . . Repair Stations . | . . . . . . . . . . . . . . . . . . . . . . . . . . . . . Recycling Units . | . . . . . . . . . . . . . . . . . . . . . . . . . . . . . Scanalyzers 1 | . . . . . . . . . . . 1 . . . . . . . . . . . . . . . . . Researchers 1 | . . . . . . . . . . . 1 . . . . . . . . . . . . . . . . . Garrison Access 2 | . . . . . . . 2 . . . . . . . . . . . . . . . . . . . . . Restock 1 | . . . . . . . 1 . . . . . . . . . . . . . . . . . . . . . Watchers 1 | . . . . . . . 1 . . . . . . . . . . . . . . . . . . . . . Data Cores Recovered 7 | . . . 2 . . . . . . . . . 1 . . . 1 . . . . . 2 . . . . 1 Used 2 | . . . 1 . . . . . . . . . . . . . . . . . . . 1 . . . . . Hacking Detections 40 | . 1 . 2 2 1 3 2 1 3 . 1 . 2 2 . 2 2 2 3 4 . 1 3 . . 1 . 2 Full Trace Events . | . . . . . . . . . . . . . . . . . . . . . . . . . . . . . Feedback Events . | . . . . . . . . . . . . . . . . . . . . . . . . . . . . . Feedback Blocked . | . . . . . . . . . . . . . . . . . . . . . . . . . . . . . Robot Schematics Acquired 1 | . . . . . . . . . . . . . 1 . . . . . . . . . . . . . . . Robots Built 8 | . . . . . . . . . . . . . 2 . 2 . 2 . 2 . . . . . . . . . Authchips . | . . . . . . . . . . . . . . . . . . . . . . . . . . . . . Time 420 | . . . . . . . . . . . . . 84 . 168 . 84 . 84 . . . . . . . . . Total Robot Build Rating 48 | . . . . . . . . . . . . . 12 . 12 . 12 . 12 . . . . . . . . . Part Schematics Acquired 1 | . . . . . . . . . . . . . . . . . 1 . . . . . . . . . . . Parts Built . | . . . . . . . . . . . . . . . . . . . . . . . . . . . . . Authchips . | . . . . . . . . . . . . . . . . . . . . . . . . . . . . . Time . | . . . . . . . . . . . . . . . . . . . . . . . . . . . . . Total Part Build Rating . | . . . . . . . . . . . . . . . . . . . . . . . . . . . . . Part Studies Acquired 13 | . . . . . . . . . 6 . 1 . . . . . 2 . . . . . 4 . . . . . Parts Repaired . | . . . . . . . . . . . . . . . . . . . . . . . . . . . . . Time . | . . . . . . . . . . . . . . . . . . . . . . . . . . . . . Parts Recycled . | . . . . . . . . . . . . . . . . . . . . . . . . . . . . . Recycled Matter . | . . . . . . . . . . . . . . . . . . . . . . . . . . . . . Retrieved Matter . | . . . . . . . . . . . . . . . . . . . . . . . . . . . . . Retrieved Components 1 | . . . . . . . . . . . . . 1 . . . . . . . . . . . . . . . Parts Scanalyzed . | . . . . . . . . . . . . . . . . . . . . . . . . . . . . . Part Schematics Acquired . | . . . . . . . . . . . . . . . . . . . . . . . . . . . . . Parts Damaged . | . . . . . . . . . . . . . . . . . . . . . . . . . . . . . Bothacking | -11 -10 -10 -8 -8 -8 -8 -7 -7 -6 -6 -5 -5 -5 -5 -5 -5 -4 -4 -3 -3 -2 -2 -2 -2 -1 -1 -1 -1 ------------ Run | Yrd Mat Sub Mat Gar Mat Gar Fac Gar Fac Gar Fac Was Fac Gar Fac Gar Fac Gar Res Gar Res Gar Res Gar Acc Gar Acc Com Used RIF Installer 13 | . . . . 1 . 2 . 1 . 1 . . . 1 . 1 . 1 . 1 . 1 . 1 . 2 . . Coupler Efficiency 1 | . . . . . . . . . . 1 . . . . . . . . . . . . . . . . . . Hotswap 1 | . . . . . . 1 . . . . . . . . . . . . . . . . . . . . . . Command Fork 1 | . . . . . . . . 1 . . . . . . . . . . . . . . . . . . . . Signal Jammer 1 | . . . . . . 1 . . . . . . . . . . . . . . . . . . . . . . Zone Cloak 1 | . . . . . . . . . . . . . . . . . . . . . . . . 1 . . . . Robot Detection 1 | . . . . . . . . . . . . . . 1 . . . . . . . . . . . . . . Patrol Navigation 1 | . . . . . . . . . . . . . . . . . . . . 1 . . . . . . . . Alert ID Control 1 | . . . . . . . . . . . . . . . . . . 1 . . . . . . . . . . Structural Interface 1 | . . . . . . . . . . . . . . . . . . . . . . . . . . 1 . . Program Shield 1 | . . . . . . . . . . . . . . . . 1 . . . . . . . . . . . . Autooverride 2 | . . . . . . . . . . . . . . . . . . . . . . 1 . . . 1 . . Robots Hacked 93 | . . . . . 4 3 . 2 . . . . 3 6 1 4 . 10 1 5 . 9 10 13 2 10 2 8 Non-combat 3 | . . . . . 2 . . . . . . . 1 . . . . . . . . . . . . . . . Combat 90 | . . . . . 2 3 . 2 . . . . 2 6 1 4 . 10 1 5 . 9 10 13 2 10 2 8 Autooverrided 13 | . . . . . . . . . . . . . . . . . . . . . . 1 2 2 . 5 1 2 Robot Hacks Applied 95 | . . . . . 7 3 . 3 . . . . 6 7 1 4 . 10 1 5 . 9 10 11 2 5 1 10 parse_system 18 | . . . . . 3 1 . 1 . . . . . 3 1 1 . . . . . 1 . 4 . . 1 2 no_distress 2 | . . . . . 2 . . . . . . . . . . . . . . . . . . . . . . . generate_echo 1 | . . . . . . . . . . . . . 1 . . . . . . . . . . . . . . . purge_threat 1 | . . . . . . . . . . . . . 1 . . . . . . . . . . . . . . . reprogram_traps 1 | . . . . . . . . . . . . . 1 . . . . . . . . . . . . . . . block_reporting 1 | . . . . . . . . . . . . . 1 . . . . . . . . . . . . . . . find_shortcuts 1 | . . . . . 1 . . . . . . . . . . . . . . . . . . . . . . . mark_system 1 | . . . . . . . . 1 . . . . . . . . . . . . . . . . . . . . spike_heat 1 | . . . . . . . . . . . . . 1 . . . . . . . . . . . . . . . amplify_resonance 4 | . . . . . 1 2 . 1 . . . . . . . . . . . . . . . . . . . . disable_weapons 1 | . . . . . . . . . . . . . . . . . . 1 . . . . . . . . . . reboot_system 1 | . . . . . . . . . . . . . . . . . . . . . . . 1 . . . . . go_dormant 1 | . . . . . . . . . . . . . . . . . . . . . . . 1 . . . . . overwrite_iff 1 | . . . . . . . . . . . . . 1 . . . . . . . . . . . . . . . formatsys_high 60 | . . . . . . . . . . . . . . 4 . 3 . 9 1 5 . 8 8 7 2 5 . 8 Relay Couplers Released 86 | . . . . 3 . 7 2 8 . 9 . . . 9 . 7 . 8 . 6 . 12 . 7 . 8 . . Machine Destruction 84 | . . . . 3 . 7 . 8 . 9 . . . 9 . 7 . 8 . 6 . 12 . 7 . 8 . . Programmers 2 | . . . . . . . 2 . . . . . . . . . . . . . . . . . . . . . Attached 25 | . . . . . 1 1 1 . . . . . . 2 . 2 . 1 . 3 . 5 . 3 . 4 . 2 Fabnet Peak Effective % . | . . . . . . . . . . . . . . . . . . . . . . . . . . . . . Robots Rewired 59 | . . . . 7 . . . 4 . 3 . . . 2 . 2 . 6 . . . 7 . 12 . 16 . . Allies Hacked 7 | . . . . . . . . . . . . . . 1 . 1 1 . 1 . . . 1 . . . 2 . Hacks Repelled . | . . . . . . . . . . . . . . . . . . . . . . . . . . . . . Allies | -11 -10 -10 -8 -8 -8 -8 -7 -7 -6 -6 -5 -5 -5 -5 -5 -5 -4 -4 -3 -3 -2 -2 -2 -2 -1 -1 -1 -1 -------- Run | Yrd Mat Sub Mat Gar Mat Gar Fac Gar Fac Gar Fac Was Fac Gar Fac Gar Fac Gar Res Gar Res Gar Res Gar Acc Gar Acc Com Total Allies 166 | . . . . 7 . 2 . 4 1 6 . . 3 7 4 5 3 20 5 8 . 18 10 25 2 27 1 8 Largest Group 14 | . . . . 5 1 2 . 4 2 5 . . 3 5 6 5 5 11 6 8 4 11 12 14 11 14 14 4 Highest-Rated Group 820 | . . . . 81 18 56 . 84 39 211 . . 155 383 404 382 322 480 348 492 422 561 820 777 637 818 761 431 Highest-Rated Ally 216 | . . . . 81 18 31 . 21 26 62 . . 54 99 99 119 119 119 80 116 116 116 148 148 69 69 69 216 Total Orders 5 | . . . . . . . . . . . . . . 1 . 3 . . . . . . . . . 1 . . STAY 3 | . . . . . . . . . . . . . . 1 . 1 . . . . . . . . . 1 . . FOLLOW 2 | . . . . . . . . . . . . . . . . 2 . . . . . . . . . . . . Ally Attacks 1240 | . . . . 17 . 13 . 34 9 59 . . 36 15 49 56 11 108 78 91 24 78 158 104 54 147 74 25 Total Damage 42847 | . . . . 603 . 190 . 668 259 2363 . . 459 525 1782 2525 408 3433 2465 3236 1203 2541 5158 3419 1726 5510 2674 1700 Kills 245 | . . . . 4 . . . 5 2 12 . . 2 9 16 25 3 21 14 19 8 15 34 10 14 20 11 1 Allies Corrupted 18 | . . . . . . . . . . . . . . . . . . 1 . . . 3 6 1 . 2 3 2 Allies Melted 5 | . . . . . . 2 . . . . . . . 1 . . . . . . . . . 2 . . . . Intel | -11 -10 -10 -8 -8 -8 -8 -7 -7 -6 -6 -5 -5 -5 -5 -5 -5 -4 -4 -3 -3 -2 -2 -2 -2 -1 -1 -1 -1 ------- Run | Yrd Mat Sub Mat Gar Mat Gar Fac Gar Fac Gar Fac Was Fac Gar Fac Gar Fac Gar Res Gar Res Gar Res Gar Acc Gar Acc Com Active Infowar (turns) 25948 | 9 206 273 463 2077 708 1539 501 1263 837 1212 413 96 677 1820 1203 1226 517 1624 394 1055 374 1096 1320 1613 523 979 1399 531 A.S.S. 1 | . . . . . . . . . . . . . . . . . . 1 . . . . . . . . . . Terrain 25946 | 9 206 273 463 2077 708 1539 501 1263 837 1212 413 96 677 1820 1203 1226 517 1624 394 1055 374 1096 1320 1613 523 979 1399 529 Cloaking 1162 | . . . . . . . . . . . . . . . . . . . . . . . . . . . 719 443 Spoofing 2 | . . . . . . . . . . 2 . . . . . . . . . . . . . . . . . . ECM 2 | . . . . . . . . . . . . . . . . . . . . . . . . . . . . 2 Robot Analysis Total 2 | . . . . . . . . . . . . . . . . . . . . . . . . . . . . 2 Derelict Logs Recovered 1 | . . 1 . . . . . . . . . . . . . . . . . . . . . . . . . . Drone Launches . | . . . . . . . . . . . . . . . . . . . . . . . . . . . . . Drone Recoveries . | . . . . . . . . . . . . . . . . . . . . . . . . . . . . . Exploration | -11 -10 -10 -8 -8 -8 -8 -7 -7 -6 -6 -5 -5 -5 -5 -5 -5 -4 -4 -3 -3 -2 -2 -2 -2 -1 -1 -1 -1 ------------- Run | Yrd Mat Sub Mat Gar Mat Gar Fac Gar Fac Gar Fac Was Fac Gar Fac Gar Fac Gar Res Gar Res Gar Res Gar Acc Gar Acc Com Turns Passed 27076 | 112 206 273 475 2077 708 1539 586 1263 837 1212 413 96 677 1820 1203 1226 517 1624 394 1055 374 1096 1322 1613 523 979 1399 1457 Spaces Moved 18423 | 73 147 172 290 1361 458 955 384 790 605 825 346 82 443 1222 853 877 386 1152 273 692 280 696 939 1122 422 588 966 1024 Core 4 | 4 . . . . . . . . . . . . . . . . . . . . . . . . . . . . Treads . | . . . . . . . . . . . . . . . . . . . . . . . . . . . . . Legs 18419 | 69 147 172 290 1361 458 955 384 790 605 825 346 82 443 1222 853 877 386 1152 273 692 280 696 939 1122 422 588 966 1024 Wheels . | . . . . . . . . . . . . . . . . . . . . . . . . . . . . . Hover . | . . . . . . . . . . . . . . . . . . . . . . . . . . . . . Flight . | . . . . . . . . . . . . . . . . . . . . . . . . . . . . . Fastest Speed 50 | 50 120 120 120 123 123 123 123 125 110 110 110 108 93 93 126 120 120 120 120 120 120 120 105 105 105 105 105 105 Average Speed 117 | 116 120 120 122 123 123 123 124 125 116 110 110 109 135 123 126 122 120 120 120 120 120 120 118 105 105 105 105 106 Slowest Speed 178 | 120 120 120 123 123 123 123 126 125 125 110 110 110 178 126 126 126 120 120 120 120 120 120 120 105 105 105 105 116 Overloaded Moves . | . . . . . . . . . . . . . . . . . . . . . . . . . . . . . Propulsion Burnouts . | . . . . . . . . . . . . . . . . . . . . . . . . . . . . . Robots Hopped . | . . . . . . . . . . . . . . . . . . . . . . . . . . . . . Potential Cave-ins . | . . . . . . . . . . . . . . . . . . . . . . . . . . . . . Cave-ins Triggered . | . . . . . . . . . . . . . . . . . . . . . . . . . . . . . Exploration Rate (%) 51 | 5 24 16 39 99 53 97 9 77 23 98 15 96 19 99 27 91 15 98 13 97 11 97 30 96 18 67 34 31 Regions Visited 28 Branch Regions 2 Pre-discovered Areas 1 | . . 1 . . . . . . . . . . . . . . . . . . . . . . . . . . Known Exits Taken 15 | 1 1 1 1 . 1 . 1 . 1 . . . 1 . 1 . 1 . 1 . 1 . 1 . 1 . 1 . Unknown Exits Taken . | . . . . . . . . . . . . . . . . . . . . . . . . . . . . . Scrap Searched 1 | . . 1 . . . . . . . . . . . . . . . . . . . . . . . . . . Spaces Dug . | . . . . . . . . . . . . . . . . . . . . . . . . . . . . . Terrain Destroyed 916 | . . 8 9 9 17 158 . 14 . 96 . . 37 93 . 55 . 87 5 67 . 86 3 75 . . 27 70 Melee . | . . . . . . . . . . . . . . . . . . . . . . . . . . . . . Projectile 3 | . . . . . . . . . . 3 . . . . . . . . . . . . . . . . . . AOE 898 | . . 8 9 9 17 158 . 14 . 93 . . 37 93 . 55 . 87 5 67 . 86 3 75 . . 17 65 Terrain Rammed . | . . . . . . . . . . . . . . . . . . . . . . . . . . . . . Walls Destroyed . | . . . . . . . . . . . . . . . . . . . . . . . . . . . . . Machines Disabled . | . . . . . . . . . . . . . . . . . . . . . . . . . . . . . Actions | -11 -10 -10 -8 -8 -8 -8 -7 -7 -6 -6 -5 -5 -5 -5 -5 -5 -4 -4 -3 -3 -2 -2 -2 -2 -1 -1 -1 -1 --------- Run | Yrd Mat Sub Mat Gar Mat Gar Fac Gar Fac Gar Fac Was Fac Gar Fac Gar Fac Gar Res Gar Res Gar Res Gar Acc Gar Acc Com Total 21856 | 86 168 204 368 1550 543 1119 462 918 689 1015 371 88 499 1423 945 995 427 1316 315 841 309 878 1094 1425 468 837 1208 1295 Wait 1135 | . 13 3 27 23 10 14 47 2 33 53 4 4 7 69 40 58 28 60 20 70 17 70 86 120 12 98 87 60 Move 18378 | 72 146 171 289 1359 457 953 383 788 604 823 346 81 442 1219 852 875 385 1150 272 687 279 693 938 1119 421 586 965 1023 Hop . | . . . . . . . . . . . . . . . . . . . . . . . . . . . . . Pick Up 80 | . . 2 . 14 1 4 2 7 4 4 . 1 . 5 2 3 1 3 . 1 . 1 1 9 1 6 3 5 Fast Attach 105 | 8 3 1 10 7 8 4 1 1 2 2 3 . 7 6 1 4 1 2 1 1 2 4 7 3 . 1 5 10 Attach 49 | . . 1 . 1 5 2 2 . 5 6 3 1 3 2 4 2 . 4 . 1 . . . 1 . . 1 5 Detach 92 | 1 2 1 3 1 7 4 1 . 4 8 6 1 7 3 5 4 . 6 1 2 1 3 2 2 . 1 1 15 Swap 33 | . . . 2 2 . 2 1 1 4 . . . . 3 1 1 1 . . 2 . 5 . . . 3 1 4 Drop 134 | . . 3 6 11 6 5 3 5 9 5 3 . 6 10 3 4 3 5 . 1 1 3 2 8 1 5 9 17 Fire 1298 | 5 4 16 18 86 25 92 14 70 24 70 6 . 21 78 27 29 8 67 16 55 6 68 50 121 28 98 103 93 Melee 11 | . . . . . 10 1 . . . . . . . . . . . . . . . . . . . . . . Ram . | . . . . . . . . . . . . . . . . . . . . . . . . . . . . . Kick 5 | . . . . . 1 . . . . . . . 1 . 2 . . . . . . . . . . . . 1 Crush . | . . . . . . . . . . . . . . . . . . . . . . . . . . . . . Escape Stasis 62 | . . . . 5 . 9 . 3 . 15 . . . 6 . 3 . 1 . 9 . 1 3 5 . . . 2 Rewire 70 | . . . . 12 . . . 7 . 5 . . . 2 . 3 . 10 . . . 7 . 4 1 18 . 1 Trap 1 | . . . . . . 1 . . . . . . . . . . . . . . . . . . . . . . Miscellaneous 403 | . . 6 13 29 13 28 8 34 . 24 . . 5 20 8 9 . 8 5 12 3 23 5 33 4 21 33 59 Route ------- -11/Scrapyard -10/Materials (discovered 2 exits: *Min / *Sub) -10/Subcaves -8/Materials (discovered 2 exits: *Fac / Gar) -8/Garrison (discovered 3 exits: *Mat x3) -8/Materials (discovered 2 exits: *Fac / Gar) -8/Garrison (discovered 3 exits: *Fac x3) -7/Factory (discovered 2 exits: *Low / Gar) -7/Garrison (discovered 3 exits: *Fac x3) -6/Factory (discovered 4 exits: *Fac / Low x2 / Gar) -6/Garrison (discovered 4 exits: *Fac x3 / *Fac) -5/Factory -5/Waste -5/Factory (discovered 3 exits: *Upp / Ext / Gar) -5/Garrison (discovered 4 exits: *Fac x4) -5/Factory (discovered 5 exits: *Upp x2 / Ext x2 / Gar) -5/Garrison (discovered 3 exits: *Fac x3) -4/Factory (discovered 3 exits: Upp x2 / Gar) -4/Garrison (discovered 3 exits: *Res x3) -3/Research (discovered 3 exits: Res / Qua / Gar) -3/Garrison (discovered 3 exits: *Res x3) -2/Research -2/Garrison (discovered 3 exits: *Res x3) -2/Research (discovered 4 exits: *Acc / Tes x2 / Gar) -2/Garrison (discovered 3 exits: *Acc x3) -1/Access (discovered 3 exits: Sur / Com / Gar) -1/Garrison (discovered 3 exits: *Acc x3) -1/Access -1/Command To Epsilon Eridani History --------- Turn | Location | Event 1 | -11/Scrapyard | Upgraded with Propulsion slot (x1) 1 | -11/Scrapyard | Upgraded with Utility slot (x1) 1 | -11/Scrapyard | Upgraded with Weapon slot (x1) 3 | -11/Scrapyard | Identified exit to Materials 3 | -11/Scrapyard | Discovered exit to Materials (range 16) 113 | -11/Scrapyard | Entered Materials 128 | -10/Materials | Identified exit to Mines 128 | -10/Materials | Discovered exit to Mines (range 15) 203 | -10/Materials | Identified exit to Subcaves 203 | -10/Materials | Discovered exit to Subcaves (range 13) 225 | -10/Materials | Upgraded with Power slot (x1) 225 | -10/Materials | Upgraded with Propulsion slot (x1) 225 | -10/Materials | Upgraded with Utility slot (x1) 225 | -10/Materials | Upgraded with Weapon slot (x1) 319 | -10/Materials | Entered Subcaves 320 | -10/Subcaves | Approached by a straggling Scientist 486 | -10/Subcaves | Build established: Wizard-Skirmisher 494 | -10/Subcaves | Learned location of Storage (-7) 539 | -10/Subcaves | Ambushed by angry Subdweller bent on revenge 539 | -10/Subcaves | Identified exit to Materials 539 | -10/Subcaves | Discovered exit to Materials (range 15) 592 | -10/Subcaves | Entered Materials 594 | -8/Materials | Reached level 2 594 | -8/Materials | Reached level 3 594 | -8/Materials | Reached level 4 594 | -8/Materials | Reached level 5 594 | -8/Materials | Reached level 6 824 | -8/Materials | Reached level 7 926 | -8/Materials | Upgraded with Weapon slot (x1) 1040 | -8/Materials | Identified exit to Factory 1040 | -8/Materials | Discovered exit to Factory (range 16) 1065 | -8/Materials | Identified exit to Garrison 1067 | -8/Materials | Entered Garrison 1090 | -8/Garrison | Identified exit to Materials 1110 | -8/Garrison | Reached level 8 1162 | -8/Garrison | Upgraded with Utility slot (x2) 1193 | -8/Garrison | Triggered checkpoint 1464 | -8/Garrison | Triggered checkpoint 1561 | -8/Garrison | Destroyed 7 combat bots 1639 | -8/Garrison | Build established: Wizard-Gunner 1689 | -8/Garrison | Triggered checkpoint 1690 | -8/Garrison | Reached level 9 1713 | -8/Garrison | Triggered checkpoint 1865 | -8/Garrison | Triggered checkpoint 1904 | -8/Garrison | Triggered checkpoint 1929 | -8/Garrison | Triggered checkpoint 1969 | -8/Garrison | Installed Relay Interface Framework 2375 | -8/Garrison | Triggered checkpoint 2546 | -8/Garrison | Spotted B-75 Beast 2546 | -8/Garrison | Spotted B-75 Beast 2608 | -8/Garrison | Lost 3 allies 2620 | -8/Garrison | Rewired B-75 Beast 2639 | -8/Garrison | Reached level 10 2639 | -8/Garrison | Destroyed B-75 Beast 2741 | -8/Garrison | Triggered checkpoint 2832 | -8/Garrison | Triggered checkpoint 2964 | -8/Garrison | Upgraded with Utility slot (x1) 3075 | -8/Garrison | Garrison Relay disabled 3093 | -8/Garrison | Garrison Relay disabled 3144 | -8/Garrison | Entered Materials 3144 | -8/Materials | Accompanied by 1 ally 3197 | -8/Materials | Upgraded with Utility slot (x2) 3260 | -8/Materials | Reached level 11 3510 | -8/Materials | Build established: Wizard-Assassin 3713 | -8/Materials | Discovered exit to Factory (range 11) 3848 | -8/Materials | Identified exit to Garrison 3852 | -8/Materials | Entered Garrison 3974 | -8/Garrison | Triggered checkpoint 3993 | -8/Garrison | Garrison Relay disabled 4105 | -8/Garrison | Reached level 12 4210 | -8/Garrison | Rescued a captive Derelict 4213 | -8/Garrison | Rescued a captive Derelict 4272 | -8/Garrison | Triggered checkpoint 4283 | -8/Garrison | Triggered checkpoint 4372 | -8/Garrison | Destroyed 14 combat bots 4420 | -8/Garrison | Triggered checkpoint 4426 | -8/Garrison | Build established: Wizard-Gunner 4460 | -8/Garrison | Discovered exit to Factory (range 9) 4519 | -8/Garrison | Garrison Relay disabled 4728 | -8/Garrison | Triggered checkpoint 4757 | -8/Garrison | Garrison Relay disabled 4775 | -8/Garrison | Discovered exit to Factory (range 12) 4874 | -8/Garrison | Phase Generator disabled 4935 | -8/Garrison | Expanded RIF knowledge: Signal Jamming 4935 | -8/Garrison | Reached level 13 4979 | -8/Garrison | Upgraded with Utility slot (x1) 5054 | -8/Garrison | Triggered checkpoint 5125 | -8/Garrison | Discovered exit to Factory (range 20) 5136 | -8/Garrison | Triggered checkpoint 5213 | -8/Garrison | Expanded RIF knowledge: Hotswap 5254 | -8/Garrison | Discovered exit to Factory (range 79) 5254 | -8/Garrison | Discovered exit to Factory (range 62) 5254 | -8/Garrison | Discovered exit to Factory (range 15) 5391 | -8/Garrison | Entered Factory 5393 | -7/Factory | Reached level 14 5410 | -7/Factory | Identified exit to Lower Caves 5410 | -7/Factory | Discovered exit to Lower Caves (range 18) 5509 | -7/Factory | Garrison activated, responded to threat 5639 | -7/Factory | Upgraded with Propulsion slot (x1) 5882 | -7/Factory | Build established: Wizard-Skirmisher 5963 | -7/Factory | Garrison activated, responded to threat 5976 | -7/Factory | Identified exit to Garrison 5977 | -7/Factory | Entered Garrison 5998 | -7/Garrison | Upgraded with Power slot (x1) 6033 | -7/Garrison | Triggered checkpoint 6051 | -7/Garrison | Reached level 15 6111 | -7/Garrison | Garrison Relay disabled 6123 | -7/Garrison | Triggered checkpoint 6214 | -7/Garrison | Triggered checkpoint 6219 | -7/Garrison | Triggered checkpoint 6284 | -7/Garrison | Destroyed 9 combat bots 6317 | -7/Garrison | Identified exit to Factory 6317 | -7/Garrison | Discovered exit to Factory (range 13) 6373 | -7/Garrison | Triggered checkpoint 6417 | -7/Garrison | Triggered checkpoint 6441 | -7/Garrison | Garrison Relay disabled 6513 | -7/Garrison | Triggered checkpoint 6559 | -7/Garrison | Garrison Relay disabled 6579 | -7/Garrison | Expanded RIF knowledge: Command Fork 6579 | -7/Garrison | Reached level 16 6639 | -7/Garrison | Learned Factory security intel 6715 | -7/Garrison | Garrison Relay disabled 6835 | -7/Garrison | Triggered checkpoint 6848 | -7/Garrison | Discovered exit to Factory (range 12) 6908 | -7/Garrison | Garrison Relay disabled 7058 | -7/Garrison | Discovered exit to Factory (range 19) 7058 | -7/Garrison | Discovered exit to Factory (range 49) 7058 | -7/Garrison | Discovered exit to Factory (range 33) 7077 | -7/Garrison | Triggered checkpoint 7240 | -7/Garrison | Entered Factory 7240 | -6/Factory | Accompanied by 2 allies 7242 | -6/Factory | Reached level 17 7314 | -6/Factory | Identified exit to Lower Caves 7794 | -6/Factory | Upgraded with Utility slot (x1) 7898 | -6/Factory | Identified exit to Factory 7898 | -6/Factory | Discovered exit to Factory (range 19) 8025 | -6/Factory | Upgraded with Utility slot (x1) 8026 | -6/Factory | Upgraded with Utility slot (x1) 8076 | -6/Factory | Identified exit to Garrison 8077 | -6/Factory | Entered Garrison 8077 | -6/Garrison | Accompanied by 1 ally 8079 | -6/Garrison | Reached level 18 8098 | -6/Garrison | Found embedded Infiltrators 8117 | -6/Garrison | Triggered checkpoint 8136 | -6/Garrison | Garrison Relay disabled 8314 | -6/Garrison | Spotted B-75 Beast 8319 | -6/Garrison | Build established: Wizard-Gunner 8328 | -6/Garrison | Destroyed B-75 Beast 8359 | -6/Garrison | Triggered checkpoint 8376 | -6/Garrison | Identified exit to Factory 8376 | -6/Garrison | Discovered exit to Factory (range 5) 8461 | -6/Garrison | Triggered checkpoint 8493 | -6/Garrison | Triggered checkpoint 8504 | -6/Garrison | Triggered checkpoint 8507 | -6/Garrison | Lost 4 allies 8596 | -6/Garrison | Expanded RIF knowledge: Coupler Efficiency 8611 | -6/Garrison | Discovered exit to Factory (range 16) 8617 | -6/Garrison | Triggered checkpoint 8622 | -6/Garrison | Reached level 19 8787 | -6/Garrison | Rescued a captive Derelict 8804 | -6/Garrison | Phase Generator disabled 8828 | -6/Garrison | Garrison Relay disabled 8877 | -6/Garrison | Triggered checkpoint 8929 | -6/Garrison | Triggered checkpoint 8962 | -6/Garrison | Garrison Relay disabled 8980 | -6/Garrison | Discovered exit to Factory (range 19) 9097 | -6/Garrison | Triggered checkpoint 9139 | -6/Garrison | Garrison Relay disabled 9160 | -6/Garrison | P-60 Hacker assimilated allied FI-9GV(l) 9218 | -6/Garrison | Found Relay Coupler [Proto] 9255 | -6/Garrison | Discovered exit to Factory (range 19) 9279 | -6/Garrison | Garrison Relay disabled 9289 | -6/Garrison | Entered Factory 9291 | -5/Factory | Reached level 20 9360 | -5/Factory | Identified exit to DSF 9367 | -5/Factory | Build established: Wizard-Tank 9463 | -5/Factory | Identified exit to Factory 9463 | -5/Factory | Discovered exit to Factory (range 17) 9702 | -5/Factory | Sucked down chute 9702 | -5/Factory | Entered Waste 9717 | -5/Waste | EMP discharged 9728 | -5/Waste | Spotted C-40 Crusher 9728 | -5/Waste | Spotted C-40 Crusher 9733 | -5/Waste | Spotted C-40 Crusher 9737 | -5/Waste | Found Prototype Launcher 9739 | -5/Waste | Identified Scatter Rocket Array 9742 | -5/Waste | Spotted C-40 Crusher 9743 | -5/Waste | Spotted C-40 Crusher 9773 | -5/Waste | Spotted C-40 Crusher 9780 | -5/Waste | Crushed by Compactor (1 part destroyed, 2 dropped) 9788 | -5/Waste | Identified exit to Factory 9788 | -5/Waste | Discovered exit to Factory (range 10) 9798 | -5/Waste | Entered Factory 9820 | -5/Factory | Build established: Wizard-Gunner 9914 | -5/Factory | Identified exit to Upper Caves 9914 | -5/Factory | Discovered exit to Upper Caves (range 20) 10148 | -5/Factory | Identified exit to Extension 10148 | -5/Factory | Discovered exit to Extension (range 20) 10189 | -5/Factory | Reached level 21 10279 | -5/Factory | Fabricated P-70 Sage? 10474 | -5/Factory | Identified exit to Garrison 10475 | -5/Factory | Entered Garrison 10475 | -5/Garrison | Accompanied by 1 ally 10509 | -5/Garrison | Triggered checkpoint 10516 | -5/Garrison | Watched by a mysterious "MATRIX" hacker 10518 | -5/Garrison | Garrison Relay disabled 10659 | -5/Garrison | Upgraded with Utility slot (x1) 10683 | -5/Garrison | Spotted B-75 Beast 10719 | -5/Garrison | Destroyed B-75 Beast 10898 | -5/Garrison | Identified exit to Factory 10898 | -5/Garrison | Discovered exit to Factory (range 14) 10907 | -5/Garrison | Discovered exit to Factory (range 18) 10907 | -5/Garrison | Learned Factory security intel 10914 | -5/Garrison | Triggered checkpoint 10919 | -5/Garrison | Reached level 22 10965 | -5/Garrison | Build established: Wizard-Tank 11053 | -5/Garrison | Triggered checkpoint 11089 | -5/Garrison | Garrison Relay disabled 11207 | -5/Garrison | Upgraded with Utility slot (x1) 11378 | -5/Garrison | Triggered checkpoint 11445 | -5/Garrison | Garrison Relay disabled 11457 | -5/Garrison | Triggered checkpoint 11495 | -5/Garrison | Rewired Striker 11497 | -5/Garrison | Rewired Striker 11512 | -5/Garrison | Discovered exit to Factory (range 10) 11545 | -5/Garrison | Expanded RIF knowledge: Robot Detection 11621 | -5/Garrison | Triggered checkpoint 11692 | -5/Garrison | Garrison Relay disabled 11741 | -5/Garrison | Phase Generator disabled 11768 | -5/Garrison | Triggered checkpoint 11780 | -5/Garrison | Discovered exit to Factory (range 12) 11799 | -5/Garrison | Garrison Relay disabled 11881 | -5/Garrison | Triggered checkpoint 12295 | -5/Garrison | Entered Factory 12295 | -5/Factory | Accompanied by 4 allies 12443 | -5/Factory | Discovered exit to Upper Caves (range 9) 12506 | -5/Factory | Fabricated P-70 Sage? 12598 | -5/Factory | Reached level 23 12628 | -5/Factory | Allies destroyed Striker 12989 | -5/Factory | Discovered exit to Extension (range 12) 13378 | -5/Factory | Lost 3 allies 13496 | -5/Factory | Identified exit to Garrison 13498 | -5/Factory | Entered Garrison 13498 | -5/Garrison | Accompanied by 1 ally 13541 | -5/Garrison | Rewired Executioner 13543 | -5/Garrison | Rewired Executioner 13614 | -5/Garrison | Triggered checkpoint 13621 | -5/Garrison | Triggered checkpoint 13629 | -5/Garrison | Triggered checkpoint 13644 | -5/Garrison | Triggered checkpoint 13778 | -5/Garrison | Triggered checkpoint 13804 | -5/Garrison | Garrison Relay disabled 13846 | -5/Garrison | Discovered exit to Factory (range 3) 13880 | -5/Garrison | Phase Generator disabled 14170 | -5/Garrison | Discovered exit to Factory (range 19) 14185 | -5/Garrison | Discovered exit to Factory (range 12) 14185 | -5/Garrison | Discovered exit to Factory (range 49) 14185 | -5/Garrison | Discovered exit to Factory (range 64) 14216 | -5/Garrison | Triggered checkpoint 14228 | -5/Garrison | Triggered checkpoint 14249 | -5/Garrison | Garrison Relay disabled 14249 | -5/Garrison | Reached level 24 14406 | -5/Garrison | Triggered checkpoint 14424 | -5/Garrison | Garrison Relay disabled 14598 | -5/Garrison | Triggered checkpoint 14627 | -5/Garrison | Expanded RIF knowledge: Program Shield 14635 | -5/Garrison | Garrison Relay disabled 14724 | -5/Garrison | Entered Factory 14724 | -4/Factory | Accompanied by 3 allies 14802 | -4/Factory | Identified exit to Upper Caves 14887 | -4/Factory | Found Quantum Capacitor 14922 | -4/Factory | Fabricated P-70 Sage? 15235 | -4/Factory | Sage 7b assimilated hostile W-44 Eye 15240 | -4/Factory | Identified exit to Garrison 15241 | -4/Factory | Entered Garrison 15241 | -4/Garrison | Accompanied by 5 allies 15243 | -4/Garrison | Reached level 25 15288 | -4/Garrison | Heavy support dispatched to Research 15313 | -4/Garrison | Triggered checkpoint 15334 | -4/Garrison | Garrison Relay disabled 15395 | -4/Garrison | Triggered checkpoint 15415 | -4/Garrison | Triggered checkpoint 15417 | -4/Garrison | Triggered checkpoint 15423 | -4/Garrison | Triggered checkpoint 15480 | -4/Garrison | Lost 7 allies 15513 | -4/Garrison | Triggered checkpoint 15520 | -4/Garrison | Garrison Relay disabled 15585 | -4/Garrison | Identified exit to Research 15585 | -4/Garrison | Discovered exit to Research (range 10) 15641 | -4/Garrison | Found Prototype Device 15641 | -4/Garrison | Identified Active Sensor Suite 15702 | -4/Garrison | H-XX Assembler disabled 15811 | -4/Garrison | Triggered checkpoint 15849 | -4/Garrison | Discovered exit to Research (range 11) 15945 | -4/Garrison | Expanded RIF knowledge: Alert ID Control 15962 | -4/Garrison | Garrison Relay disabled 16242 | -4/Garrison | Discovered exit to Research (range 12) 16245 | -4/Garrison | Triggered checkpoint 16278 | -4/Garrison | Garrison Relay disabled 16287 | -4/Garrison | Triggered checkpoint 16328 | -4/Garrison | Lost 5 allies 16403 | -4/Garrison | Triggered checkpoint 16456 | -4/Garrison | Phase Generator disabled 16456 | -4/Garrison | Reached level 26 16674 | -4/Garrison | Found embedded Infiltrators 16865 | -4/Garrison | Entered Research 16865 | -3/Research | Accompanied by 6 allies 16965 | -3/Research | Reached level 27 17030 | -3/Research | Fabricated P-70 Sage? 17110 | -3/Research | Identified exit to Research 17110 | -3/Research | Discovered exit to Research (range 12) 17169 | -3/Research | Lost 3 allies 17228 | -3/Research | Identified exit to Quarantine 17228 | -3/Research | Discovered exit to Quarantine (range 8) 17258 | -3/Research | Identified exit to Garrison 17259 | -3/Research | Entered Garrison 17259 | -3/Garrison | Accompanied by 5 allies 17301 | -3/Garrison | Triggered checkpoint 17305 | -3/Garrison | Reached level 28 17322 | -3/Garrison | Garrison Relay disabled 17366 | -3/Garrison | Spotted B-86 Titan 17370 | -3/Garrison | Triggered checkpoint 17370 | -3/Garrison | Assimilated Titan 8a with formatsys_high 17381 | -3/Garrison | Triggered checkpoint 17405 | -3/Garrison | Triggered checkpoint 17435 | -3/Garrison | Triggered checkpoint 17496 | -3/Garrison | Lost 7 allies 17517 | -3/Garrison | Triggered checkpoint 17591 | -3/Garrison | Destroyed 7 combat bots 17644 | -3/Garrison | Garrison Relay disabled 17666 | -3/Garrison | Discovered exit to Research (range 10) 17683 | -3/Garrison | Spotted B-86 Titan 17686 | -3/Garrison | Assimilated Titan 8b with formatsys_high 17737 | -3/Garrison | Found Relay Coupler [Proto] 17875 | -3/Garrison | Triggered checkpoint 17905 | -3/Garrison | Phase Generator disabled 17914 | -3/Garrison | Discovered exit to Research (range 19) 17973 | -3/Garrison | Garrison Relay disabled 18055 | -3/Garrison | Found embedded Infiltrators 18176 | -3/Garrison | Garrison Relay disabled 18176 | -3/Garrison | Reached level 29 18201 | -3/Garrison | Discovered exit to Research (range 21) 18220 | -3/Garrison | Expanded RIF knowledge: Patrol Navigation 18225 | -3/Garrison | Triggered checkpoint 18314 | -3/Garrison | Entered Research 18314 | -2/Research | Accompanied by 4 allies 18316 | -2/Research | Reached level 30 18576 | -2/Research | Upgraded with Utility slot (x1) 18600 | -2/Research | Found Exp. Core Analyzer 18683 | -2/Research | Identified exit to Garrison 18688 | -2/Research | Entered Garrison 18688 | -2/Garrison | Accompanied by 2 allies 18695 | -2/Garrison | Phase Generator disabled 18708 | -2/Garrison | Triggered checkpoint 18733 | -2/Garrison | Garrison Relay disabled 18900 | -2/Garrison | Build established: Wizard-Gunner 18930 | -2/Garrison | Garrison Relay disabled 18998 | -2/Garrison | Garrison Relay disabled 18998 | -2/Garrison | Reached level 31 19015 | -2/Garrison | Garrison Relay disabled 19122 | -2/Garrison | Triggered checkpoint 19134 | -2/Garrison | Triggered checkpoint 19142 | -2/Garrison | Triggered checkpoint 19160 | -2/Garrison | Triggered checkpoint 19260 | -2/Garrison | Lost 5 allies 19267 | -2/Garrison | Identified exit to Research 19267 | -2/Garrison | Discovered exit to Research (range 14) 19339 | -2/Garrison | Expanded RIF knowledge: Autooverride 19346 | -2/Garrison | Triggered checkpoint 19456 | -2/Garrison | Triggered checkpoint 19470 | -2/Garrison | Garrison Relay disabled 19522 | -2/Garrison | Discovered exit to Research (range 17) 19668 | -2/Garrison | Triggered checkpoint 19668 | -2/Garrison | Discovered exit to Research (range 18) 19679 | -2/Garrison | Garrison Relay disabled 19784 | -2/Garrison | Entered Research 19784 | -2/Research | Accompanied by 9 allies 19894 | -2/Research | Spotted B-90 Cyclops 19895 | -2/Research | Assimilated Cyclops 9a with formatsys_high 19938 | -2/Research | Identified exit to Testing 19944 | -2/Research | Spotted B-90 Cyclops 19950 | -2/Research | Assimilated Cyclops 9b with formatsys_high 20149 | -2/Research | Lost 3 allies 20466 | -2/Research | Reached level 32 20849 | -2/Research | Lost 5 allies 20934 | -2/Research | Targeted by mysterious "MATRIX" hacker 21066 | -2/Research | Spotted B-90 Cyclops 21083 | -2/Research | Identified exit to Access 21083 | -2/Research | Discovered exit to Access (range 11) 21104 | -2/Research | Identified exit to Garrison 21106 | -2/Research | Entered Garrison 21176 | -2/Garrison | Triggered checkpoint 21190 | -2/Garrison | Spotted B-90 Cyclops 21220 | -2/Garrison | Lost 3 allies 21233 | -2/Garrison | Destroyed 9 combat bots 21248 | -2/Garrison | Destroyed B-90 Cyclops 21348 | -2/Garrison | Triggered checkpoint 21382 | -2/Garrison | Garrison Relay disabled 21425 | -2/Garrison | Discovered exit to Access (range 9) 21449 | -2/Garrison | Spotted B-86 Titan 21463 | -2/Garrison | Destroyed B-86 Titan 21479 | -2/Garrison | Rewired B-90 Cyclops 21542 | -2/Garrison | Triggered checkpoint 21638 | -2/Garrison | Triggered checkpoint 21727 | -2/Garrison | Garrison Relay disabled 21774 | -2/Garrison | Discovered exit to Access (range 8) 21834 | -2/Garrison | Triggered checkpoint 21915 | -2/Garrison | Phase Generator disabled 21918 | -2/Garrison | Spotted B-90 Cyclops 21926 | -2/Garrison | Allies destroyed B-90 Cyclops 22029 | -2/Garrison | Discovered exit to Access (range 17) 22038 | -2/Garrison | Triggered checkpoint 22064 | -2/Garrison | Garrison Relay disabled 22079 | -2/Garrison | Garrison Relay disabled 22180 | -2/Garrison | Triggered checkpoint 22262 | -2/Garrison | Garrison Relay disabled 22306 | -2/Garrison | Expanded RIF knowledge: Zone Cloak 22306 | -2/Garrison | Reached level 33 22322 | -2/Garrison | Triggered checkpoint 22474 | -2/Garrison | Lost 4 allies 22498 | -2/Garrison | Spotted B-90 Cyclops 22530 | -2/Garrison | Destroyed B-90 Cyclops 22556 | -2/Garrison | Lost 3 allies 22719 | -2/Garrison | Entered Access 22719 | -1/Access | Accompanied by 11 allies 22776 | -1/Access | Garrison activated, responded to threat 22791 | -1/Access | Reached level 34 22820 | -1/Access | Destroyed 9 combat bots 22969 | -1/Access | First assault squad dispatched 23135 | -1/Access | Lost 4 allies 23179 | -1/Access | Identified exit to Command 23179 | -1/Access | Identified exit to Surface 23239 | -1/Access | Identified exit to Garrison 23242 | -1/Access | Entered Garrison 23242 | -1/Garrison | Accompanied by 7 allies 23280 | -1/Garrison | Triggered checkpoint 23289 | -1/Garrison | Garrison Relay disabled 23339 | -1/Garrison | Identified exit to Access 23339 | -1/Garrison | Discovered exit to Access (range 34) 23339 | -1/Garrison | Discovered exit to Access (range 41) 23339 | -1/Garrison | Discovered exit to Access (range 41) 23344 | -1/Garrison | Spotted B-99 Colossus 23348 | -1/Garrison | Triggered checkpoint 23355 | -1/Garrison | Triggered checkpoint 23377 | -1/Garrison | Reached level 35 23381 | -1/Garrison | Triggered checkpoint 23395 | -1/Garrison | Triggered checkpoint 23430 | -1/Garrison | Allies destroyed B-99 Colossus 23447 | -1/Garrison | Lost 10 allies 23475 | -1/Garrison | Triggered checkpoint 23496 | -1/Garrison | Expanded RIF knowledge: Autooverride 23514 | -1/Garrison | Lost 3 allies 23606 | -1/Garrison | Destroyed 10 combat bots 23725 | -1/Garrison | Triggered checkpoint 23736 | -1/Garrison | Garrison Relay disabled 23758 | -1/Garrison | Triggered checkpoint 23788 | -1/Garrison | Garrison Relay disabled 23869 | -1/Garrison | Lost 4 allies 24042 | -1/Garrison | Triggered checkpoint 24072 | -1/Garrison | Garrison Relay disabled 24104 | -1/Garrison | Expanded RIF knowledge: Structural Interface 24221 | -1/Garrison | Entered Access 24221 | -1/Access | Accompanied by 14 allies 24262 | -1/Access | Reached level 36 24385 | -1/Access | Allied Derelicts emerged from ambush trap array 24386 | -1/Access | Spotted B-99 Colossus 24422 | -1/Access | Allies destroyed B-99 Colossus 24452 | -1/Access | Lost 3 allies 24713 | -1/Access | Lost 4 allies 24923 | -1/Access | Energy Cycler disabled 24979 | -1/Access | Spotted B-99 Colossus 25042 | -1/Access | Core integrity fell below 50% 25088 | -1/Access | Destroyed B-99 Colossus 25096 | -1/Access | Found Multirail 25101 | -1/Access | Found Multirail 25446 | -1/Access | Discovered exit to Command (range 18) 25620 | -1/Access | Entered Command 25668 | -1/Command | Spotted B-99 Colossus 25759 | -1/Command | Disengaged cave seal 25887 | -1/Command | Phase Generator disabled 26071 | -1/Command | Discovered exit to Surface (range 20) 26158 | -1/Command | Spotted M Guard 26158 | -1/Command | Spotted M Guard 26158 | -1/Command | Spotted Combat Programmer 26159 | -1/Command | Spotted Combat Programmer 26165 | -1/Command | Assimilated M Guard with formatsys_high 26178 | -1/Command | Destroyed Combat Programmer 26193 | -1/Command | Destroyed Combat Programmer 26195 | -1/Command | Assimilated M Guard with formatsys_high 26213 | -1/Command | Lost 4 allies 26670 | -1/Command | Spotted B-99 Colossus 26670 | -1/Command | Spotted Executioner 26670 | -1/Command | Spotted Executioner 26670 | -1/Command | Spotted Executioner 26670 | -1/Command | Spotted Executioner 26670 | -1/Command | Spotted Striker 26670 | -1/Command | Spotted Striker 26670 | -1/Command | Spotted Alpha 7 26670 | -1/Command | Spotted Alpha 7 26672 | -1/Command | Assimilated Striker with formatsys_high 26681 | -1/Command | All MAIN.C guards destroyed 26686 | -1/Command | Destroyed Striker 26691 | -1/Command | Destroyed Executioner 26713 | -1/Command | Lost 4 allies 26713 | -1/Command | Destroyed Executioner 26713 | -1/Command | Destroyed Alpha 7 26730 | -1/Command | Destroyed Alpha 7 26745 | -1/Command | Found Prototype Device 26745 | -1/Command | Identified Exp. ECM Suite 26754 | -1/Command | Found Prototype Processor 26754 | -1/Command | Identified Exp. Target Analyzer 26757 | -1/Command | Found Exp. Target Analyzer 26759 | -1/Command | Found Adv. Kinecellerator 26809 | -1/Command | Found Exp. Core Analyzer 26833 | -1/Command | Found Exp. Core Analyzer 26849 | -1/Command | Spotted B-99 Colossus 26892 | -1/Command | Destroyed Executioner 26915 | -1/Command | Destroyed B-99 Colossus 26929 | -1/Command | Found Multirail 26993 | -1/Command | Reached level 37 26993 | -1/Command | Destroyed Executioner 27020 | -1/Command | Destroyed B-99 Colossus 27077 | *** | Escaped! Last Messages --------------- 27015_ Slug penetrates B-99 Colossus. 27017_ Slug penetrates Wall. 27017_ Slug penetrates B-99 Colossus. 27020_ B-99 Colossus destroyed. 27020_ Slug penetrates Wall. 27034_ Acquired 196 matter. 27044_ Triggered Stasis Trap. 27044_ A bubble of rippling energy engulfs the area. 27044_ Field strength at 73. 27045_ Field strength at 46. 27046_ Field strength at 19. 27047_ Stasis field depleted. 27051_ The Access Shell folds into the floor. 27057_ Dropped Protomatter-57. 27063_ Used Protomatter to restore core integrity (+146) 27064_ Used Protomatter to restore part integrity (+16, depleted) 27065_ Dropped Protomatter-70. 27074_ Used Protomatter to restore part integrity (+198, depleted) [Achievement: Leg Day] [Achievement: Engineer's Best Friend] Map ----- +----------------------------------------------------+ | """ ######" ######!#####?###### ##### # | | """ ##### " ######+############ " # | | """ !## # # =%= ###### ##### # | | #### # [= ###### ##### # | | # =% =%%% ################ # | | #+#"## # # #!%= ## !! # # | | !% % [%%= "" ## ! # | | * % *= = """"## # | | = = [% % % * """"## # | | ]!= = =! "" ## !! # | | *# ######+# | | ################+### + | | ########### % ### ################## | | ### + % ### ############# | | ### ####### ############################ | | ###+####### ############################ | | ## ############################ | | ## ############################ | | """" ""## ############################ | | """" ""## ### ############# | | """" T"## ### ############# "" | | """" ""## ### ; # #*#%##### "" | | ""## ### ^ ^^ =^% *######## | | ## ### ^ ^ !^^%+% | | ## ### "" ^ ^ ^^!/=+!!! | | #####+##### ^ @" ^ ^^^ ^^ ^;%[=*[%[ | | #####??##?# ^ ^ ^ ^ ^!=%%*=!" | | ##?##?##### ^ ^^^ ^^#!=*!!"" | | ###+########## ##??# ^ ^ ; ; # # #;###%=!!" | | # #???# ;;###########%!== | | # #???# #############=[* | | + #???##############??????######!!! | | # #??????????????????????????###/ " | | # ^ #???????????######????????#### # | | ?# ^ #???????????# #????????#?## # | | ?# #######???????????# ! #############! " | | ?# #????# ? ???# % +[ ![%%!!* " | | ?# #????# ] # !!!=| =!!!!*! !# | | ?# #????# " ![%=%! !!==! %[=% | | ?# #????# # =[%=[" !!= != | | ?# +????# ???# !*##" # | | ?# #????# ??????# !##" " | | ?# #????# ??????????# ### "### | | ?# #?????????????????####+#?# "### | | ? ! ????????????????????# #?# ##?# | | ? ??????????????????? #?#####"" ""###??# | | ?##########???????????????????###?????#""T""#????? | | ??????????????????????????????????????# """ #????? | | ??????????????????????????????????????#######????? | | ?????????????????????????????????????????????????? | +----------------------------------------------------+ Best States ------------- Heat Dissipation 177 Energy Generation 113 Energy Capacity 770 Matter Stores 1100 Matter Capacity 1100 Sight Range 22 Robot Scan Range 26 Terrain Scan Range 20 Terrain Scan Density 810 Cloak Strength 4 EM Shielding 2 Corruption Block 20 Armor Coverage 225 Resistance: KI 50 Resistance: TH 50 Resistance: EX 50 Resistance: EM 60 Resistance: I 35 Resistance: S 35 Resistance: P 35 Point Defense Rating 240 Weapon Cycling 25 Phase Shifting 15 Evasion (%) 82 Targeting Accuracy 8 Target Analysis 15 Core Analysis 12 Particle Charging 25 Kinecelleration 50 Salvage Targeting 3 Offensive Hacking 90 Defensive Hacking 50 Relay Coupler Types 4 Relay Coupler Value 348 Item Schematics ----------------- Centrium Leg | -4/Factory | Hacked Robot Schematics ------------------ P-70 Sage | -5/Factory | Hacked Fabricated ------------ P-70 Sage | x2 | -5/Factory P-70 Sage | x2 | -5/Factory P-70 Sage | x2 | -4/Factory P-70 Sage | x2 | -3/Research Repaired ---------- Nothing Studied --------- Lightning Gun | -6/Factory | Hacked Remote Datajack | -6/Factory | Hacked Carbon-fiber Leg | -6/Factory | Hacked Arm. Leg | -6/Factory | Hacked Imp. Titanium Leg | -6/Factory | Hacked Titanium Leg | -6/Factory | Hacked Hpw. Shock Rifle | -5/Factory | Hacked Imp. Remote Datajack | -4/Factory | Hacked Tesla Rifle | -4/Factory | Hacked Gamma Rifle | -2/Research | Hacked Centrium Leg | -2/Research | Hacked Adv. Remote Datajack | -2/Research | Hacked Lgt. Quantum Reactor | -2/Research | Hacked Alien Tech Used ----------------- None Achievements -------------- Disruptive Presence Engineer's Best Friend Hack The Planet Hackathon Hackerman Join The Dark Side Leg Day Let Me Out Of Here May I Have Another? Mindtrick My Business Is Booming Oppo Buddy Powerful Protocols Pwned RIFT Wizard Some Acronyms Are Better Than Others Versatile You Will Be Upgraded Challenges ------------ None RPGLIKE | -11 -10 -10 -8 -8 -8 -8 -7 -7 -6 -6 -5 -5 -5 -5 -5 -5 -4 -4 -3 -3 -2 -2 -2 -2 -1 -1 -1 -1 --------- Run | Yrd Mat Sub Mat Gar Mat Gar Fac Gar Fac Gar Fac Was Fac Gar Fac Gar Fac Gar Res Gar Res Gar Res Gar Acc Gar Acc Com Levels Raised 36 | . . . 6 3 1 2 1 2 1 2 1 . 1 1 1 1 . 2 1 2 1 1 1 1 1 1 1 1 XP Earned 60015 | 6000 250 1000 8574 5066 1216 2337 1981 2570 2269 2809 1603 139 659 2145 857 1208 1089 1796 2595 1988 1836 2086 625 1456 2283 2021 597 960 XP Spent 133320 | 9900 18475 . 3260 15900 4300 33850 1100 800 13400 . . . . 7900 . . . . 10875 . 4400 3040 870 . . . 5250 . Upgrades 157 | 37 28 . 13 9 2 22 1 1 7 . . . . 2 . . . . 11 . 1 8 3 . . . 12 . Power Slot 2 | . 1 . . . . . . 1 . . . . . . . . . . . . . . . . . . . . Propulsion Slot 3 | 1 1 . . . . . 1 . . . . . . . . . . . . . . . . . . . . . Utility Slot 14 | 1 1 . . 3 2 1 . . 3 . . . . 2 . . . . . . 1 . . . . . . . Weapon Slot 3 | 1 1 . 1 . . . . . . . . . . . . . . . . . . . . . . . . . Heat Dissipation 21 | 1 . . 12 . . . . . . . . . . . . . . . . . . 8 . . . . . . Energy Generation 9 | 1 . . . . . 3 . . . . . . . . . . . . 5 . . . . . . . . . Energy Storage 8 | 2 . . . . . . . . . . . . . . . . . . 6 . . . . . . . . . Matter Storage 16 | 4 . . . . . . . . . . . . . . . . . . . . . . . . . . 12 . Mass Support 1 | 1 . . . . . . . . . . . . . . . . . . . . . . . . . . . . Inventory Capacity 10 | 3 2 . . 5 . . . . . . . . . . . . . . . . . . . . . . . . Sight Range 6 | 2 4 . . . . . . . . . . . . . . . . . . . . . . . . . . . Sensor Range 13 | 6 7 . . . . . . . . . . . . . . . . . . . . . . . . . . . Terrain Scan Density 8 | 5 . . . . . . . . . . . . . . . . . . . . . . 3 . . . . . Ranged Accuracy 8 | 4 . . . . . . . . 4 . . . . . . . . . . . . . . . . . . . Hack Attack % 14 | . 6 . . . . 8 . . . . . . . . . . . . . . . . . . . . . . Hack Defense % 10 | . 5 . . 1 . 4 . . . . . . . . . . . . . . . . . . . . . . KI Resistance % 3 | 1 . . . . . 2 . . . . . . . . . . . . . . . . . . . . . . TH Resistance % 3 | 1 . . . . . 2 . . . . . . . . . . . . . . . . . . . . . . EX Resistance % 3 | 1 . . . . . 2 . . . . . . . . . . . . . . . . . . . . . . KI Damage % 2 | 2 . . . . . . . . . . . . . . . . . . . . . . . . . . . . Protomatter Created 8515 | . . 72 175 542 161 744 136 434 177 382 . . 255 334 166 84 66 129 144 364 131 443 . 948 438 981 419 790 Integrity Restored 7033 | . . 113 191 493 147 421 120 576 . 328 . . 69 337 163 164 . 120 94 202 65 403 100 544 64 402 690 1227 Core 4470 | . . 55 128 372 70 294 98 391 . 235 . . 55 231 126 126 . 78 67 153 48 213 15 413 39 314 486 463 Parts 2563 | . . 58 63 121 77 127 22 185 . 93 . . 14 106 37 38 . 42 27 49 17 190 85 131 25 88 204 764 Protomatter Decayed 12338 | . . 61 105 480 238 642 187 192 194 634 . . 192 256 470 497 117 372 415 405 135 717 1204 895 722 1213 931 1064 Game ------ Seed RocketCryofiberImpeller Manual? 0 Play Time 05:38:02 Cumulative 347.2 hours Start 2026.07.06 @ 21:48:16 End 2026.07.08 @ 23:15:20 Sessions 5 Manual Loads 0 Difficulty Explorer Special Mode Winter2019/RPGLIKE Game No. 129 Rogue 0 Adventurer 1 Explorer 128 Win Type 0 Total 29 Types 17/1/5/3/0/1/1/0/1/0 Lore% 73 Gallery% 72 Achievement% 61 Wizard Run 0 Options --------- Layout 0 ASCII 0 Keyboard 1 Movement Numpad Keybinds 0 Fullscreen 2 Font 18/X11 Map View 76x50 Zoom Use 0% Tactical HUD 1 Map Filters BRIGHTNESS(150) Filters NONE Steam 1 RUN: be7d8a7b-b39e-4e6b-b33e-a8f3562324d5